Workbook

Sheet Istruzioni
A1: Simulatore Vendita Cantiere Freesbe
A3: Come usare questo file
A4: 1. Compila solo le celle blu nel foglio Input.
A5: 2. Inserisci le metriche reali del funnel: lead → appuntamento, appuntamento → proposta, proposta → vendita.
A6: 3. Compila capacità team, quota lead organici/referral e buffer strategici.
A7: 4. Il foglio Scenari confronta tre ipotesi: Prudente, Realistico, Aggressivo.
A8: 5. Il foglio Dashboard evidenzia sostenibilità, gap budget, capacità e collo di bottiglia.
A9: 6. Il foglio Piano mensile traduce lo scenario in target operativi per mese.
A11: Logica del modello
A12: • Lead necessari con buffer = Lead necessari × (1 + buffer lead)
A13: • Lead paid necessari = Lead necessari con buffer × (1 - quota lead organici/referral)
A14: • Budget totale con buffer = Lead paid necessari × CPL × (1 + buffer budget)
A15: • Mesi stimati = Unità da vendere / vendite mensili sostenibili con il budget attuale
A16: • Il modello segnala gap di capacità commerciale e la priorità operativa principale
A19: Legenda colori
A20: Blu | B20: input modificabili
A21: Nero | B21: formule e calcoli
A22: Grigio | B22: etichette e note statiche
A23: Teal | B23: KPI principali
A24: Arancione / Rosso chiaro | B24: attenzione, gap o priorità operative

Sheet Input
A1: Input del progetto
A2: Compila solo le celle blu
A4: Anagrafica progetto
A5: Nome progetto | B5: Residenze Aurora
A6: Area / città | B6: Milano
A7: Tipologia progetto | B7: Nuova costruzione
A8: Unità da vendere | B8: 24
A9: Prezzo medio per unità (€) | B9: 420000
A10: Obiettivo di sell-out (mesi) | B10: 12
A11: Budget marketing mensile disponibile (€) | B11: 6500
A13: Assunzioni funnel commerciale
A14: Lead → appuntamento | B14: 12.0%
A15: Appuntamento → proposta | B15: 35.0%
A16: Proposta → vendita | B16: 28.0%
A17: CPL medio (€) | B17: 38
A19: Moltiplicatori scenario
A20: Scenario | B20: Fattore conversioni | C20: Fattore CPL | D20: Nota
A21: Prudente | B21: 85.0% | C21: 115.0% | D21: più attrito nel funnel, CPL più alto
A22: Realistico | B22: 100.0% | C22: 100.0% | D22: baseline del progetto
A23: Aggressivo | B23: 115.0% | C23: 90.0% | D23: funnel più efficiente, CPL più basso
A25: Capacità commerciale e margini
A26: Max appuntamenti gestibili / mese | B26: 18 | D26: capacità reale del team commerciale
A27: Max proposte gestibili / mese | B27: 6 | D27: quante proposte il team riesce a gestire in media
A28: Quota lead organici / referral | B28: 15.0% | D28: quota dei lead coperta da canali non paid
A29: Buffer lead strategico | B29: 10.0% | D29: margine di sicurezza sui lead necessari
A30: Buffer budget strategico | B30: 10.0% | D30: margine di sicurezza sul budget

Sheet Scenari
A1: Confronto scenari
A2: Il foglio confronta il progetto in tre letture diverse
B3: Prudente | C3: Realistico | D3: Aggressivo
A4: Fattore conversioni | B4: =Input!$B$21 -> 85.0% | C4: =Input!$B$22 -> 100.0% | D4: =Input!$B$23 -> 115.0%
A5: Fattore CPL | B5: =Input!$C$21 -> 115.0% | C5: =Input!$C$22 -> 100.0% | D5: =Input!$C$23 -> 90.0%
A7: Lead → appuntamento effettivo | B7: =Input!$B$14*B4 -> 10.2% | C7: =Input!$B$14*C4 -> 12.0% | D7: =Input!$B$14*D4 -> 13.8%
A8: Appuntamento → proposta effettivo | B8: =Input!$B$15*B4 -> 29.8% | C8: =Input!$B$15*C4 -> 35.0% | D8: =Input!$B$15*D4 -> 40.3%
A9: Proposta → vendita effettivo | B9: =Input!$B$16*B4 -> 23.8% | C9: =Input!$B$16*C4 -> 28.0% | D9: =Input!$B$16*D4 -> 32.2%
A10: Conversione complessiva | B10: =B7*B8*B9 -> 0.72% | C10: =C7*C8*C9 -> 1.18% | D10: =D7*D8*D9 -> 1.79%
A11: CPL effettivo (€) | B11: =Input!$B$17*B5 -> 43.7 | C11: =Input!$B$17*C5 -> 38 | D11: =Input!$B$17*D5 -> 34.2
A13: Unità da vendere | B13: =Input!$B$8 -> 24 | C13: =Input!$B$8 -> 24 | D13: =Input!$B$8 -> 24
A14: Prezzo medio per unità (€) | B14: =Input!$B$9 -> 420000 | C14: =Input!$B$9 -> 420000 | D14: =Input!$B$9 -> 420000
A15: Obiettivo di sell-out (mesi) | B15: =Input!$B$10 -> 12 | C15: =Input!$B$10 -> 12 | D15: =Input!$B$10 -> 12
A16: Budget mensile disponibile (€) | B16: =Input!$B$11 -> 6500 | C16: =Input!$B$11 -> 6500 | D16: =Input!$B$11 -> 6500
A18: Lead necessari | B18: =IFERROR(B13/B10,"") -> 3323 | C18: =IFERROR(C13/C10,"") -> 2041 | D18: =IFERROR(D13/D10,"") -> 1342
A19: Appuntamenti necessari | B19: =IFERROR(B13/(B8*B9),"") -> 339 | C19: =IFERROR(C13/(C8*C9),"") -> 245 | D19: =IFERROR(D13/(D8*D9),"") -> 185
A20: Proposte necessarie | B20: =IFERROR(B13/B9,"") -> 101 | C20: =IFERROR(C13/C9,"") -> 86 | D20: =IFERROR(D13/D9,"") -> 75
A21: Ricavo potenziale (€) | B21: =B13*B14 -> 10080000 | C21: =C13*C14 -> 10080000 | D21: =D13*D14 -> 10080000
A23: Budget marketing totale richiesto (€) | B23: =B18*B11 -> 145220.718 | C23: =C18*C11 -> 77551.02041 | D23: =D18*D11 -> 45891.94928
A24: Costo marketing per unità venduta (€) | B24: =IFERROR(B23/B13,"") -> 6050.863252 | C24: =IFERROR(C23/C13,"") -> 3231.292517 | D24: =IFERROR(D23/D13,"") -> 1912.164554
A25: Lead target per mese | B25: =IFERROR(B18/B15,"") -> 277 | C25: =IFERROR(C18/C15,"") -> 170 | D25: =IFERROR(D18/D15,"") -> 112
A26: Budget richiesto per mese (€) | B26: =IFERROR(B23/B15,"") -> 12101.7265 | C26: =IFERROR(C23/C15,"") -> 6462.585034 | D26: =IFERROR(D23/D15,"") -> 3824.329107
A28: Lead/mese con budget attuale | B28: =IFERROR(B16/B11,"") -> 149 | C28: =IFERROR(C16/C11,"") -> 171 | D28: =IFERROR(D16/D11,"") -> 190
A29: Vendite/mese con budget attuale | B29: =IFERROR(B28*B10,"") -> 1.07 | C29: =IFERROR(C28*C10,"") -> 2.01 | D29: =IFERROR(D28*D10,"") -> 3.40
A30: Mesi stimati di assorbimento | B30: =IFERROR(B13/B29,"") -> 22.3 | C30: =IFERROR(C13/C29,"") -> 11.9 | D30: =IFERROR(D13/D29,"") -> 7.1
A31: Gap mesi vs obiettivo | B31: =IFERROR(B30-B15,"") -> 10.3 | C31: =IFERROR(C30-C15,"") -> -0.1 | D31: =IFERROR(D30-D15,"") -> -4.9
A32: Gap budget mensile (€) | B32: =B26-B16 -> 5601.726504 | C32: =C26-C16 -> -37.41496599 | D32: =D26-D16 -> -2675.670893
A33: Stato operativo | B33: =IF(B30="", "Verifica input", IF(B30<=B15, "In linea con l'obiettivo", "Budget o conversioni da rafforzare")) -> Budget o conversioni da rafforzare | C33: =IF(C30="", "Verifica input", IF(C30<=C15, "In linea con l'obiettivo", "Budget o conversioni da rafforzare")) -> In linea con l'obiettivo | D33: =IF(D30="", "Verifica input", IF(D30<=D15, "In linea con l'obiettivo", "Budget o conversioni da rafforzare")) -> In linea con l'obiettivo
A35: Lettura evoluta: mix canali, capacità e buffer
A36: Quota lead organici / referral | B36: =Input!$B$28 -> 15.0% | C36: =Input!$B$28 -> 15.0% | D36: =Input!$B$28 -> 15.0%
A37: Buffer lead | B37: =Input!$B$29 -> 10.0% | C37: =Input!$B$29 -> 10.0% | D37: =Input!$B$29 -> 10.0%
A38: Buffer budget | B38: =Input!$B$30 -> 10.0% | C38: =Input!$B$30 -> 10.0% | D38: =Input!$B$30 -> 10.0%
A39: Max appuntamenti / mese | B39: =Input!$B$26 -> 18 | C39: =Input!$B$26 -> 18 | D39: =Input!$B$26 -> 18
A40: Max proposte / mese | B40: =Input!$B$27 -> 6 | C40: =Input!$B$27 -> 6 | D40: =Input!$B$27 -> 6
A42: Lead necessari con buffer | B42: =IFERROR(B18*(1+B37),"") -> 3655.4 | C42: =IFERROR(C18*(1+C37),"") -> 2244.9 | D42: =IFERROR(D18*(1+D37),"") -> 1476.1
A43: Lead paid necessari | B43: =IFERROR(B42*(1-B36),"") -> 3107.1 | C43: =IFERROR(C42*(1-C36),"") -> 1908.2 | D43: =IFERROR(D42*(1-D36),"") -> 1254.6
A44: Appuntamenti target / mese | B44: =IFERROR(B19/B15,"") -> 28.2 | C44: =IFERROR(C19/C15,"") -> 20.4 | D44: =IFERROR(D19/D15,"") -> 15.4
A45: Proposte target / mese | B45: =IFERROR(B20/B15,"") -> 8.4 | C45: =IFERROR(C20/C15,"") -> 7.1 | D45: =IFERROR(D20/D15,"") -> 6.2
A46: Budget totale con buffer (€) | B46: =IFERROR(B43*B11*(1+B38),"") -> 149359.5085 | C46: =IFERROR(C43*C11*(1+C38),"") -> 79761.22449 | D46: =IFERROR(D43*D11*(1+D38),"") -> 47199.86984
A47: Budget richiesto / mese con buffer (€) | B47: =IFERROR(B46/B15,"") -> 12446.62571 | C47: =IFERROR(C46/C15,"") -> 6646.768707 | D47: =IFERROR(D46/D15,"") -> 3933.322487
A48: Lead paid / mese | B48: =IFERROR(B43/B15,"") -> 258.9 | C48: =IFERROR(C43/C15,"") -> 159.0 | D48: =IFERROR(D43/D15,"") -> 104.6
A49: Lead totali / mese sostenibili con budget attuale | B49: =IF(B36>=1,"",IFERROR((B16/B11)/(1-B36),"")) -> 175.0 | C49: =IF(C36>=1,"",IFERROR((C16/C11)/(1-C36),"")) -> 201.2 | D49: =IF(D36>=1,"",IFERROR((D16/D11)/(1-D36),"")) -> 223.6
A50: Vendite / mese sostenibili | B50: =IFERROR(B49*B10,"") -> 1.3 | C50: =IFERROR(C49*C10,"") -> 2.4 | D50: =IFERROR(D49*D10,"") -> 4.0
A51: Mesi stimati con mix canali e buffer | B51: =IFERROR(B13/B50,"") -> 19.0 | C51: =IFERROR(C13/C50,"") -> 10.1 | D51: =IFERROR(D13/D50,"") -> 6.0
A52: Gap budget / mese con buffer (€) | B52: =B47-B16 -> 5946.625709 | C52: =C47-C16 -> 146.7687075 | D52: =D47-D16 -> -2566.677513
A53: Gap capacità appuntamenti / mese | B53: =B44-B39 -> 10.2 | C53: =C44-C39 -> 2.4 | D53: =D44-D39 -> -2.6
A54: Gap capacità proposte / mese | B54: =B45-B40 -> 2.4 | C54: =C45-C40 -> 1.1 | D54: =D45-D40 -> 0.2
A55: Incidenza marketing su ricavi | B55: =IFERROR(B46/B21,"") -> 1.5% | C55: =IFERROR(C46/C21,"") -> 0.8% | D55: =IFERROR(D46/D21,"") -> 0.5%
A56: Collo di bottiglia funnel | B56: =IF(MIN(B7:B9)=B7,"Lead → appuntamento",IF(MIN(B7:B9)=B8,"Appuntamento → proposta","Proposta → vendita")) -> Lead → appuntamento | C56: =IF(MIN(C7:C9)=C7,"Lead → appuntamento",IF(MIN(C7:C9)=C8,"Appuntamento → proposta","Proposta → vendita")) -> Lead → appuntamento | D56: =IF(MIN(D7:D9)=D7,"Lead → appuntamento",IF(MIN(D7:D9)=D8,"Appuntamento → proposta","Proposta → vendita")) -> Lead → appuntamento
A57: Priorità operativa | B57: =IF(B53>0,"Rafforza gestione appuntamenti",IF(B54>0,"Rafforza qualità proposte / closing",IF(B52>0,"Aumenta budget o riduci CPL","Ottimizza il collo di bottiglia: "&B56))) -> Rafforza gestione appuntamenti | C57: =IF(C53>0,"Rafforza gestione appuntamenti",IF(C54>0,"Rafforza qualità proposte / closing",IF(C52>0,"Aumenta budget o riduci CPL","Ottimizza il collo di bottiglia: "&C56))) -> Rafforza gestione appuntamenti | D57: =IF(D53>0,"Rafforza gestione appuntamenti",IF(D54>0,"Rafforza qualità proposte / closing",IF(D52>0,"Aumenta budget o riduci CPL","Ottimizza il collo di bottiglia: "&D56))) -> Rafforza qualità proposte / closing
A58: Stato operativo evoluto | B58: =IF(OR(B51="",B47=""),"Verifica input",IF(AND(B51<=B15,B53<=0,B54<=0),"In linea e sostenibile",IF(OR(B53>0,B54>0),"Target raggiungibile ma team da potenziare","Budget o conversioni da rafforzare"))) -> Target raggiungibile ma team da potenziare | C58: =IF(OR(C51="",C47=""),"Verifica input",IF(AND(C51<=C15,C53<=0,C54<=0),"In linea e sostenibile",IF(OR(C53>0,C54>0),"Target raggiungibile ma team da potenziare","Budget o conversioni da rafforzare"))) -> Target raggiungibile ma team da potenziare | D58: =IF(OR(D51="",D47=""),"Verifica input",IF(AND(D51<=D15,D53<=0,D54<=0),"In linea e sostenibile",IF(OR(D53>0,D54>0),"Target raggiungibile ma team da potenziare","Budget o conversioni da rafforzare"))) -> Target raggiungibile ma team da potenziare

Sheet Dashboard
A1: Dashboard sintetica
B2: Seleziona scenario | C2: Realistico
B4: Progetto | C4: =Input!B5 -> Residenze Aurora | E4: Area | F4: =Input!B6 -> Milano | H4: Tipologia | I4: =Input!B7 -> Nuova costruzione
B6: Unità da vendere | E6: Lead necessari (buffer) | H6: Budget totale con buffer
B7: =INDEX(Scenari!$B$13:$D$13,1,MATCH($C$2,Scenari!$B$3:$D$3,0)) -> 24 | E7: =INDEX(Scenari!$B$42:$D$42,1,MATCH($C$2,Scenari!$B$3:$D$3,0)) -> 2244.9 | H7: =INDEX(Scenari!$B$46:$D$46,1,MATCH($C$2,Scenari!$B$3:$D$3,0)) -> 79761.22449
B10: Appuntamenti / mese | E10: Proposte / mese | H10: Mesi stimati
B11: =INDEX(Scenari!$B$44:$D$44,1,MATCH($C$2,Scenari!$B$3:$D$3,0)) -> 20.4 | E11: =INDEX(Scenari!$B$45:$D$45,1,MATCH($C$2,Scenari!$B$3:$D$3,0)) -> 7.1 | H11: =INDEX(Scenari!$B$51:$D$51,1,MATCH($C$2,Scenari!$B$3:$D$3,0)) -> 10.1
B14: Budget mensile attuale | C14: =INDEX(Scenari!$B$16:$D$16,1,MATCH($C$2,Scenari!$B$3:$D$3,0)) -> 6500 | E14: Stato operativo | F14: =INDEX(Scenari!$B$58:$D$58,1,MATCH($C$2,Scenari!$B$3:$D$3,0)) -> Target raggiungibile ma team da potenziare | H14: Max appunt./mese | I14: =INDEX(Scenari!$B$39:$D$39,1,MATCH($C$2,Scenari!$B$3:$D$3,0)) -> 18
B15: Gap budget / mese | C15: =INDEX(Scenari!$B$52:$D$52,1,MATCH($C$2,Scenari!$B$3:$D$3,0)) -> 146.7687075 | E15: Collo di bottiglia | F15: =INDEX(Scenari!$B$56:$D$56,1,MATCH($C$2,Scenari!$B$3:$D$3,0)) -> Lead → appuntamento | H15: Gap appunt./mese | I15: =INDEX(Scenari!$B$53:$D$53,1,MATCH($C$2,Scenari!$B$3:$D$3,0)) -> 2.4
B16: Lead organici / referral | C16: =INDEX(Scenari!$B$36:$D$36,1,MATCH($C$2,Scenari!$B$3:$D$3,0)) -> 15.0% | E16: Priorità operativa | F16: =INDEX(Scenari!$B$57:$D$57,1,MATCH($C$2,Scenari!$B$3:$D$3,0)) -> Rafforza gestione appuntamenti | H16: Max proposte/mese | I16: =INDEX(Scenari!$B$40:$D$40,1,MATCH($C$2,Scenari!$B$3:$D$3,0)) -> 6
B17: Incidenza marketing | C17: =INDEX(Scenari!$B$55:$D$55,1,MATCH($C$2,Scenari!$B$3:$D$3,0)) -> 0.8% | E17: Conv. complessiva | F17: =INDEX(Scenari!$B$10:$D$10,1,MATCH($C$2,Scenari!$B$3:$D$3,0)) -> 1.18% | H17: Gap proposte/mese | I17: =INDEX(Scenari!$B$54:$D$54,1,MATCH($C$2,Scenari!$B$3:$D$3,0)) -> 1.1
B20: Confronto scenari
B21: Prudente | C21: Realistico | D21: Aggressivo
A22: Budget totale con buffer | B22: =Scenari!B46 -> 149359.5085 | C22: =Scenari!C46 -> 79761.22449 | D22: =Scenari!D46 -> 47199.86984
A23: Mesi stimati | B23: =Scenari!B51 -> 19.0 | C23: =Scenari!C51 -> 10.1 | D23: =Scenari!D51 -> 6.0
A24: Budget/mese richiesto | B24: =Scenari!B47 -> 12446.62571 | C24: =Scenari!C47 -> 6646.768707 | D24: =Scenari!D47 -> 3933.322487
A25: Gap budget/mese | B25: =Scenari!B52 -> 5946.625709 | C25: =Scenari!C52 -> 146.7687075 | D25: =Scenari!D52 -> -2566.677513
A26: Gap appunt./mese | B26: =Scenari!B53 -> 10.2 | C26: =Scenari!C53 -> 2.4 | D26: =Scenari!D53 -> -2.6
A27: Gap proposte/mese | B27: =Scenari!B54 -> 2.4 | C27: =Scenari!C54 -> 1.1 | D27: =Scenari!D54 -> 0.2
B30: Lettura strategica
B31: =IF(F14="In linea e sostenibile","Il progetto è coerente con obiettivo, budget e capacità commerciale. La priorità è mantenere tracciamento, qualità creativa e velocità di risposta.",IF(F14="Target raggiungibile ma team da potenziare","Il mercato può assorbire il progetto, ma il team rischia colli di bottiglia operativi. Serve rafforzare appuntamenti, proposte o closing.","Il progetto richiede un intervento su budget, CPL o conversioni. La leva principale è: "&F16&".")) -> Il mercato può assorbire il progetto, ma il team rischia colli di bottiglia operativi. Serve rafforzare appuntamenti, proposte o closing.

Sheet Piano mensile
A1: Piano mensile operativo
A2: Scenario attivo | B2: =Dashboard!C2 -> Realistico | D2: Progetto | E2: =Input!B5 -> Residenze Aurora
A4: Distribuzione lineare di base: usa questo foglio per tradurre lo scenario in target operativi mensili e verificare subito budget e capacità.
A6: Mese | B6: Vendite target | C6: Vendite cumulative | D6: Lead totali | E6: Lead paid | F6: Appuntamenti | G6: Proposte | H6: Budget richiesto | I6: Verifica operativa
A7: 1 | B7: =IF($A7<=INDEX(Scenari!$B$15:$D$15,1,MATCH($B$2,Scenari!$B$3:$D$3,0)),INDEX(Scenari!$B$13:$D$13,1,MATCH($B$2,Scenari!$B$3:$D$3,0))/INDEX(Scenari!$B$15:$D$15,1,MATCH($B$2,Scenari!$B$3:$D$3,0)),"") -> 2.0 | C7: =IF(B7="","",SUM($B$7:B7)) -> 2.0 | D7: =IF($A7<=INDEX(Scenari!$B$15:$D$15,1,MATCH($B$2,Scenari!$B$3:$D$3,0)),INDEX(Scenari!$B$42:$D$42,1,MATCH($B$2,Scenari!$B$3:$D$3,0))/INDEX(Scenari!$B$15:$D$15,1,MATCH($B$2,Scenari!$B$3:$D$3,0)),"") -> 187.1 | E7: =IF($A7<=INDEX(Scenari!$B$15:$D$15,1,MATCH($B$2,Scenari!$B$3:$D$3,0)),INDEX(Scenari!$B$43:$D$43,1,MATCH($B$2,Scenari!$B$3:$D$3,0))/INDEX(Scenari!$B$15:$D$15,1,MATCH($B$2,Scenari!$B$3:$D$3,0)),"") -> 159.0 | F7: =IF($A7<=INDEX(Scenari!$B$15:$D$15,1,MATCH($B$2,Scenari!$B$3:$D$3,0)),INDEX(Scenari!$B$19:$D$19,1,MATCH($B$2,Scenari!$B$3:$D$3,0))/INDEX(Scenari!$B$15:$D$15,1,MATCH($B$2,Scenari!$B$3:$D$3,0)),"") -> 20.4 | G7: =IF($A7<=INDEX(Scenari!$B$15:$D$15,1,MATCH($B$2,Scenari!$B$3:$D$3,0)),INDEX(Scenari!$B$20:$D$20,1,MATCH($B$2,Scenari!$B$3:$D$3,0))/INDEX(Scenari!$B$15:$D$15,1,MATCH($B$2,Scenari!$B$3:$D$3,0)),"") -> 7.1 | H7: =IF($A7<=INDEX(Scenari!$B$15:$D$15,1,MATCH($B$2,Scenari!$B$3:$D$3,0)),INDEX(Scenari!$B$47:$D$47,1,MATCH($B$2,Scenari!$B$3:$D$3,0)),"") -> 6646.768707 | I7: =IF(B7="","",IF(INDEX(Scenari!$B$19:$D$19,1,MATCH($B$2,Scenari!$B$3:$D$3,0))/INDEX(Scenari!$B$15:$D$15,1,MATCH($B$2,Scenari!$B$3:$D$3,0))>INDEX(Scenari!$B$39:$D$39,1,MATCH($B$2,Scenari!$B$3:$D$3,0)),"Rafforzare appuntamenti",IF(INDEX(Scenari!$B$20:$D$20,1,MATCH($B$2,Scenari!$B$3:$D$3,0))/INDEX(Scenari!$B$15:$D$15,1,MATCH($B$2,Scenari!$B$3:$D$3,0))>INDEX(Scenari!$B$40:$D$40,1,MATCH($B$2,Scenari!$B$3:$D$3,0)),"Rafforzare proposte",IF(INDEX(Scenari!$B$47:$D$47,1,MATCH($B$2,Scenari!$B$3:$D$3,0))>INDEX(Scenari!$B$16:$D$16,1,MATCH($B$2,Scenari!$B$3:$D$3,0)),"Rafforzare budget / CPL","In linea")))) -> Rafforzare appuntamenti
A8: 2 | B8: =IF($A8<=INDEX(Scenari!$B$15:$D$15,1,MATCH($B$2,Scenari!$B$3:$D$3,0)),INDEX(Scenari!$B$13:$D$13,1,MATCH($B$2,Scenari!$B$3:$D$3,0))/INDEX(Scenari!$B$15:$D$15,1,MATCH($B$2,Scenari!$B$3:$D$3,0)),"") -> 2.0 | C8: =IF(B8="","",SUM($B$7:B8)) -> 4.0 | D8: =IF($A8<=INDEX(Scenari!$B$15:$D$15,1,MATCH($B$2,Scenari!$B$3:$D$3,0)),INDEX(Scenari!$B$42:$D$42,1,MATCH($B$2,Scenari!$B$3:$D$3,0))/INDEX(Scenari!$B$15:$D$15,1,MATCH($B$2,Scenari!$B$3:$D$3,0)),"") -> 187.1 | E8: =IF($A8<=INDEX(Scenari!$B$15:$D$15,1,MATCH($B$2,Scenari!$B$3:$D$3,0)),INDEX(Scenari!$B$43:$D$43,1,MATCH($B$2,Scenari!$B$3:$D$3,0))/INDEX(Scenari!$B$15:$D$15,1,MATCH($B$2,Scenari!$B$3:$D$3,0)),"") -> 159.0 | F8: =IF($A8<=INDEX(Scenari!$B$15:$D$15,1,MATCH($B$2,Scenari!$B$3:$D$3,0)),INDEX(Scenari!$B$19:$D$19,1,MATCH($B$2,Scenari!$B$3:$D$3,0))/INDEX(Scenari!$B$15:$D$15,1,MATCH($B$2,Scenari!$B$3:$D$3,0)),"") -> 20.4 | G8: =IF($A8<=INDEX(Scenari!$B$15:$D$15,1,MATCH($B$2,Scenari!$B$3:$D$3,0)),INDEX(Scenari!$B$20:$D$20,1,MATCH($B$2,Scenari!$B$3:$D$3,0))/INDEX(Scenari!$B$15:$D$15,1,MATCH($B$2,Scenari!$B$3:$D$3,0)),"") -> 7.1 | H8: =IF($A8<=INDEX(Scenari!$B$15:$D$15,1,MATCH($B$2,Scenari!$B$3:$D$3,0)),INDEX(Scenari!$B$47:$D$47,1,MATCH($B$2,Scenari!$B$3:$D$3,0)),"") -> 6646.768707 | I8: =IF(B8="","",IF(INDEX(Scenari!$B$19:$D$19,1,MATCH($B$2,Scenari!$B$3:$D$3,0))/INDEX(Scenari!$B$15:$D$15,1,MATCH($B$2,Scenari!$B$3:$D$3,0))>INDEX(Scenari!$B$39:$D$39,1,MATCH($B$2,Scenari!$B$3:$D$3,0)),"Rafforzare appuntamenti",IF(INDEX(Scenari!$B$20:$D$20,1,MATCH($B$2,Scenari!$B$3:$D$3,0))/INDEX(Scenari!$B$15:$D$15,1,MATCH($B$2,Scenari!$B$3:$D$3,0))>INDEX(Scenari!$B$40:$D$40,1,MATCH($B$2,Scenari!$B$3:$D$3,0)),"Rafforzare proposte",IF(INDEX(Scenari!$B$47:$D$47,1,MATCH($B$2,Scenari!$B$3:$D$3,0))>INDEX(Scenari!$B$16:$D$16,1,MATCH($B$2,Scenari!$B$3:$D$3,0)),"Rafforzare budget / CPL","In linea")))) -> Rafforzare appuntamenti
A9: 3 | B9: =IF($A9<=INDEX(Scenari!$B$15:$D$15,1,MATCH($B$2,Scenari!$B$3:$D$3,0)),INDEX(Scenari!$B$13:$D$13,1,MATCH($B$2,Scenari!$B$3:$D$3,0))/INDEX(Scenari!$B$15:$D$15,1,MATCH($B$2,Scenari!$B$3:$D$3,0)),"") -> 2.0 | C9: =IF(B9="","",SUM($B$7:B9)) -> 6.0 | D9: =IF($A9<=INDEX(Scenari!$B$15:$D$15,1,MATCH($B$2,Scenari!$B$3:$D$3,0)),INDEX(Scenari!$B$42:$D$42,1,MATCH($B$2,Scenari!$B$3:$D$3,0))/INDEX(Scenari!$B$15:$D$15,1,MATCH($B$2,Scenari!$B$3:$D$3,0)),"") -> 187.1 | E9: =IF($A9<=INDEX(Scenari!$B$15:$D$15,1,MATCH($B$2,Scenari!$B$3:$D$3,0)),INDEX(Scenari!$B$43:$D$43,1,MATCH($B$2,Scenari!$B$3:$D$3,0))/INDEX(Scenari!$B$15:$D$15,1,MATCH($B$2,Scenari!$B$3:$D$3,0)),"") -> 159.0 | F9: =IF($A9<=INDEX(Scenari!$B$15:$D$15,1,MATCH($B$2,Scenari!$B$3:$D$3,0)),INDEX(Scenari!$B$19:$D$19,1,MATCH($B$2,Scenari!$B$3:$D$3,0))/INDEX(Scenari!$B$15:$D$15,1,MATCH($B$2,Scenari!$B$3:$D$3,0)),"") -> 20.4 | G9: =IF($A9<=INDEX(Scenari!$B$15:$D$15,1,MATCH($B$2,Scenari!$B$3:$D$3,0)),INDEX(Scenari!$B$20:$D$20,1,MATCH($B$2,Scenari!$B$3:$D$3,0))/INDEX(Scenari!$B$15:$D$15,1,MATCH($B$2,Scenari!$B$3:$D$3,0)),"") -> 7.1 | H9: =IF($A9<=INDEX(Scenari!$B$15:$D$15,1,MATCH($B$2,Scenari!$B$3:$D$3,0)),INDEX(Scenari!$B$47:$D$47,1,MATCH($B$2,Scenari!$B$3:$D$3,0)),"") -> 6646.768707 | I9: =IF(B9="","",IF(INDEX(Scenari!$B$19:$D$19,1,MATCH($B$2,Scenari!$B$3:$D$3,0))/INDEX(Scenari!$B$15:$D$15,1,MATCH($B$2,Scenari!$B$3:$D$3,0))>INDEX(Scenari!$B$39:$D$39,1,MATCH($B$2,Scenari!$B$3:$D$3,0)),"Rafforzare appuntamenti",IF(INDEX(Scenari!$B$20:$D$20,1,MATCH($B$2,Scenari!$B$3:$D$3,0))/INDEX(Scenari!$B$15:$D$15,1,MATCH($B$2,Scenari!$B$3:$D$3,0))>INDEX(Scenari!$B$40:$D$40,1,MATCH($B$2,Scenari!$B$3:$D$3,0)),"Rafforzare proposte",IF(INDEX(Scenari!$B$47:$D$47,1,MATCH($B$2,Scenari!$B$3:$D$3,0))>INDEX(Scenari!$B$16:$D$16,1,MATCH($B$2,Scenari!$B$3:$D$3,0)),"Rafforzare budget / CPL","In linea")))) -> Rafforzare appuntamenti
A10: 4 | B10: =IF($A10<=INDEX(Scenari!$B$15:$D$15,1,MATCH($B$2,Scenari!$B$3:$D$3,0)),INDEX(Scenari!$B$13:$D$13,1,MATCH($B$2,Scenari!$B$3:$D$3,0))/INDEX(Scenari!$B$15:$D$15,1,MATCH($B$2,Scenari!$B$3:$D$3,0)),"") -> 2.0 | C10: =IF(B10="","",SUM($B$7:B10)) -> 8.0 | D10: =IF($A10<=INDEX(Scenari!$B$15:$D$15,1,MATCH($B$2,Scenari!$B$3:$D$3,0)),INDEX(Scenari!$B$42:$D$42,1,MATCH($B$2,Scenari!$B$3:$D$3,0))/INDEX(Scenari!$B$15:$D$15,1,MATCH($B$2,Scenari!$B$3:$D$3,0)),"") -> 187.1 | E10: =IF($A10<=INDEX(Scenari!$B$15:$D$15,1,MATCH($B$2,Scenari!$B$3:$D$3,0)),INDEX(Scenari!$B$43:$D$43,1,MATCH($B$2,Scenari!$B$3:$D$3,0))/INDEX(Scenari!$B$15:$D$15,1,MATCH($B$2,Scenari!$B$3:$D$3,0)),"") -> 159.0 | F10: =IF($A10<=INDEX(Scenari!$B$15:$D$15,1,MATCH($B$2,Scenari!$B$3:$D$3,0)),INDEX(Scenari!$B$19:$D$19,1,MATCH($B$2,Scenari!$B$3:$D$3,0))/INDEX(Scenari!$B$15:$D$15,1,MATCH($B$2,Scenari!$B$3:$D$3,0)),"") -> 20.4 | G10: =IF($A10<=INDEX(Scenari!$B$15:$D$15,1,MATCH($B$2,Scenari!$B$3:$D$3,0)),INDEX(Scenari!$B$20:$D$20,1,MATCH($B$2,Scenari!$B$3:$D$3,0))/INDEX(Scenari!$B$15:$D$15,1,MATCH($B$2,Scenari!$B$3:$D$3,0)),"") -> 7.1 | H10: =IF($A10<=INDEX(Scenari!$B$15:$D$15,1,MATCH($B$2,Scenari!$B$3:$D$3,0)),INDEX(Scenari!$B$47:$D$47,1,MATCH($B$2,Scenari!$B$3:$D$3,0)),"") -> 6646.768707 | I10: =IF(B10="","",IF(INDEX(Scenari!$B$19:$D$19,1,MATCH($B$2,Scenari!$B$3:$D$3,0))/INDEX(Scenari!$B$15:$D$15,1,MATCH($B$2,Scenari!$B$3:$D$3,0))>INDEX(Scenari!$B$39:$D$39,1,MATCH($B$2,Scenari!$B$3:$D$3,0)),"Rafforzare appuntamenti",IF(INDEX(Scenari!$B$20:$D$20,1,MATCH($B$2,Scenari!$B$3:$D$3,0))/INDEX(Scenari!$B$15:$D$15,1,MATCH($B$2,Scenari!$B$3:$D$3,0))>INDEX(Scenari!$B$40:$D$40,1,MATCH($B$2,Scenari!$B$3:$D$3,0)),"Rafforzare proposte",IF(INDEX(Scenari!$B$47:$D$47,1,MATCH($B$2,Scenari!$B$3:$D$3,0))>INDEX(Scenari!$B$16:$D$16,1,MATCH($B$2,Scenari!$B$3:$D$3,0)),"Rafforzare budget / CPL","In linea")))) -> Rafforzare appuntamenti
A11: 5 | B11: =IF($A11<=INDEX(Scenari!$B$15:$D$15,1,MATCH($B$2,Scenari!$B$3:$D$3,0)),INDEX(Scenari!$B$13:$D$13,1,MATCH($B$2,Scenari!$B$3:$D$3,0))/INDEX(Scenari!$B$15:$D$15,1,MATCH($B$2,Scenari!$B$3:$D$3,0)),"") -> 2.0 | C11: =IF(B11="","",SUM($B$7:B11)) -> 10.0 | D11: =IF($A11<=INDEX(Scenari!$B$15:$D$15,1,MATCH($B$2,Scenari!$B$3:$D$3,0)),INDEX(Scenari!$B$42:$D$42,1,MATCH($B$2,Scenari!$B$3:$D$3,0))/INDEX(Scenari!$B$15:$D$15,1,MATCH($B$2,Scenari!$B$3:$D$3,0)),"") -> 187.1 | E11: =IF($A11<=INDEX(Scenari!$B$15:$D$15,1,MATCH($B$2,Scenari!$B$3:$D$3,0)),INDEX(Scenari!$B$43:$D$43,1,MATCH($B$2,Scenari!$B$3:$D$3,0))/INDEX(Scenari!$B$15:$D$15,1,MATCH($B$2,Scenari!$B$3:$D$3,0)),"") -> 159.0 | F11: =IF($A11<=INDEX(Scenari!$B$15:$D$15,1,MATCH($B$2,Scenari!$B$3:$D$3,0)),INDEX(Scenari!$B$19:$D$19,1,MATCH($B$2,Scenari!$B$3:$D$3,0))/INDEX(Scenari!$B$15:$D$15,1,MATCH($B$2,Scenari!$B$3:$D$3,0)),"") -> 20.4 | G11: =IF($A11<=INDEX(Scenari!$B$15:$D$15,1,MATCH($B$2,Scenari!$B$3:$D$3,0)),INDEX(Scenari!$B$20:$D$20,1,MATCH($B$2,Scenari!$B$3:$D$3,0))/INDEX(Scenari!$B$15:$D$15,1,MATCH($B$2,Scenari!$B$3:$D$3,0)),"") -> 7.1 | H11: =IF($A11<=INDEX(Scenari!$B$15:$D$15,1,MATCH($B$2,Scenari!$B$3:$D$3,0)),INDEX(Scenari!$B$47:$D$47,1,MATCH($B$2,Scenari!$B$3:$D$3,0)),"") -> 6646.768707 | I11: =IF(B11="","",IF(INDEX(Scenari!$B$19:$D$19,1,MATCH($B$2,Scenari!$B$3:$D$3,0))/INDEX(Scenari!$B$15:$D$15,1,MATCH($B$2,Scenari!$B$3:$D$3,0))>INDEX(Scenari!$B$39:$D$39,1,MATCH($B$2,Scenari!$B$3:$D$3,0)),"Rafforzare appuntamenti",IF(INDEX(Scenari!$B$20:$D$20,1,MATCH($B$2,Scenari!$B$3:$D$3,0))/INDEX(Scenari!$B$15:$D$15,1,MATCH($B$2,Scenari!$B$3:$D$3,0))>INDEX(Scenari!$B$40:$D$40,1,MATCH($B$2,Scenari!$B$3:$D$3,0)),"Rafforzare proposte",IF(INDEX(Scenari!$B$47:$D$47,1,MATCH($B$2,Scenari!$B$3:$D$3,0))>INDEX(Scenari!$B$16:$D$16,1,MATCH($B$2,Scenari!$B$3:$D$3,0)),"Rafforzare budget / CPL","In linea")))) -> Rafforzare appuntamenti
A12: 6 | B12: =IF($A12<=INDEX(Scenari!$B$15:$D$15,1,MATCH($B$2,Scenari!$B$3:$D$3,0)),INDEX(Scenari!$B$13:$D$13,1,MATCH($B$2,Scenari!$B$3:$D$3,0))/INDEX(Scenari!$B$15:$D$15,1,MATCH($B$2,Scenari!$B$3:$D$3,0)),"") -> 2.0 | C12: =IF(B12="","",SUM($B$7:B12)) -> 12.0 | D12: =IF($A12<=INDEX(Scenari!$B$15:$D$15,1,MATCH($B$2,Scenari!$B$3:$D$3,0)),INDEX(Scenari!$B$42:$D$42,1,MATCH($B$2,Scenari!$B$3:$D$3,0))/INDEX(Scenari!$B$15:$D$15,1,MATCH($B$2,Scenari!$B$3:$D$3,0)),"") -> 187.1 | E12: =IF($A12<=INDEX(Scenari!$B$15:$D$15,1,MATCH($B$2,Scenari!$B$3:$D$3,0)),INDEX(Scenari!$B$43:$D$43,1,MATCH($B$2,Scenari!$B$3:$D$3,0))/INDEX(Scenari!$B$15:$D$15,1,MATCH($B$2,Scenari!$B$3:$D$3,0)),"") -> 159.0 | F12: =IF($A12<=INDEX(Scenari!$B$15:$D$15,1,MATCH($B$2,Scenari!$B$3:$D$3,0)),INDEX(Scenari!$B$19:$D$19,1,MATCH($B$2,Scenari!$B$3:$D$3,0))/INDEX(Scenari!$B$15:$D$15,1,MATCH($B$2,Scenari!$B$3:$D$3,0)),"") -> 20.4 | G12: =IF($A12<=INDEX(Scenari!$B$15:$D$15,1,MATCH($B$2,Scenari!$B$3:$D$3,0)),INDEX(Scenari!$B$20:$D$20,1,MATCH($B$2,Scenari!$B$3:$D$3,0))/INDEX(Scenari!$B$15:$D$15,1,MATCH($B$2,Scenari!$B$3:$D$3,0)),"") -> 7.1 | H12: =IF($A12<=INDEX(Scenari!$B$15:$D$15,1,MATCH($B$2,Scenari!$B$3:$D$3,0)),INDEX(Scenari!$B$47:$D$47,1,MATCH($B$2,Scenari!$B$3:$D$3,0)),"") -> 6646.768707 | I12: =IF(B12="","",IF(INDEX(Scenari!$B$19:$D$19,1,MATCH($B$2,Scenari!$B$3:$D$3,0))/INDEX(Scenari!$B$15:$D$15,1,MATCH($B$2,Scenari!$B$3:$D$3,0))>INDEX(Scenari!$B$39:$D$39,1,MATCH($B$2,Scenari!$B$3:$D$3,0)),"Rafforzare appuntamenti",IF(INDEX(Scenari!$B$20:$D$20,1,MATCH($B$2,Scenari!$B$3:$D$3,0))/INDEX(Scenari!$B$15:$D$15,1,MATCH($B$2,Scenari!$B$3:$D$3,0))>INDEX(Scenari!$B$40:$D$40,1,MATCH($B$2,Scenari!$B$3:$D$3,0)),"Rafforzare proposte",IF(INDEX(Scenari!$B$47:$D$47,1,MATCH($B$2,Scenari!$B$3:$D$3,0))>INDEX(Scenari!$B$16:$D$16,1,MATCH($B$2,Scenari!$B$3:$D$3,0)),"Rafforzare budget / CPL","In linea")))) -> Rafforzare appuntamenti
A13: 7 | B13: =IF($A13<=INDEX(Scenari!$B$15:$D$15,1,MATCH($B$2,Scenari!$B$3:$D$3,0)),INDEX(Scenari!$B$13:$D$13,1,MATCH($B$2,Scenari!$B$3:$D$3,0))/INDEX(Scenari!$B$15:$D$15,1,MATCH($B$2,Scenari!$B$3:$D$3,0)),"") -> 2.0 | C13: =IF(B13="","",SUM($B$7:B13)) -> 14.0 | D13: =IF($A13<=INDEX(Scenari!$B$15:$D$15,1,MATCH($B$2,Scenari!$B$3:$D$3,0)),INDEX(Scenari!$B$42:$D$42,1,MATCH($B$2,Scenari!$B$3:$D$3,0))/INDEX(Scenari!$B$15:$D$15,1,MATCH($B$2,Scenari!$B$3:$D$3,0)),"") -> 187.1 | E13: =IF($A13<=INDEX(Scenari!$B$15:$D$15,1,MATCH($B$2,Scenari!$B$3:$D$3,0)),INDEX(Scenari!$B$43:$D$43,1,MATCH($B$2,Scenari!$B$3:$D$3,0))/INDEX(Scenari!$B$15:$D$15,1,MATCH($B$2,Scenari!$B$3:$D$3,0)),"") -> 159.0 | F13: =IF($A13<=INDEX(Scenari!$B$15:$D$15,1,MATCH($B$2,Scenari!$B$3:$D$3,0)),INDEX(Scenari!$B$19:$D$19,1,MATCH($B$2,Scenari!$B$3:$D$3,0))/INDEX(Scenari!$B$15:$D$15,1,MATCH($B$2,Scenari!$B$3:$D$3,0)),"") -> 20.4 | G13: =IF($A13<=INDEX(Scenari!$B$15:$D$15,1,MATCH($B$2,Scenari!$B$3:$D$3,0)),INDEX(Scenari!$B$20:$D$20,1,MATCH($B$2,Scenari!$B$3:$D$3,0))/INDEX(Scenari!$B$15:$D$15,1,MATCH($B$2,Scenari!$B$3:$D$3,0)),"") -> 7.1 | H13: =IF($A13<=INDEX(Scenari!$B$15:$D$15,1,MATCH($B$2,Scenari!$B$3:$D$3,0)),INDEX(Scenari!$B$47:$D$47,1,MATCH($B$2,Scenari!$B$3:$D$3,0)),"") -> 6646.768707 | I13: =IF(B13="","",IF(INDEX(Scenari!$B$19:$D$19,1,MATCH($B$2,Scenari!$B$3:$D$3,0))/INDEX(Scenari!$B$15:$D$15,1,MATCH($B$2,Scenari!$B$3:$D$3,0))>INDEX(Scenari!$B$39:$D$39,1,MATCH($B$2,Scenari!$B$3:$D$3,0)),"Rafforzare appuntamenti",IF(INDEX(Scenari!$B$20:$D$20,1,MATCH($B$2,Scenari!$B$3:$D$3,0))/INDEX(Scenari!$B$15:$D$15,1,MATCH($B$2,Scenari!$B$3:$D$3,0))>INDEX(Scenari!$B$40:$D$40,1,MATCH($B$2,Scenari!$B$3:$D$3,0)),"Rafforzare proposte",IF(INDEX(Scenari!$B$47:$D$47,1,MATCH($B$2,Scenari!$B$3:$D$3,0))>INDEX(Scenari!$B$16:$D$16,1,MATCH($B$2,Scenari!$B$3:$D$3,0)),"Rafforzare budget / CPL","In linea")))) -> Rafforzare appuntamenti
A14: 8 | B14: =IF($A14<=INDEX(Scenari!$B$15:$D$15,1,MATCH($B$2,Scenari!$B$3:$D$3,0)),INDEX(Scenari!$B$13:$D$13,1,MATCH($B$2,Scenari!$B$3:$D$3,0))/INDEX(Scenari!$B$15:$D$15,1,MATCH($B$2,Scenari!$B$3:$D$3,0)),"") -> 2.0 | C14: =IF(B14="","",SUM($B$7:B14)) -> 16.0 | D14: =IF($A14<=INDEX(Scenari!$B$15:$D$15,1,MATCH($B$2,Scenari!$B$3:$D$3,0)),INDEX(Scenari!$B$42:$D$42,1,MATCH($B$2,Scenari!$B$3:$D$3,0))/INDEX(Scenari!$B$15:$D$15,1,MATCH($B$2,Scenari!$B$3:$D$3,0)),"") -> 187.1 | E14: =IF($A14<=INDEX(Scenari!$B$15:$D$15,1,MATCH($B$2,Scenari!$B$3:$D$3,0)),INDEX(Scenari!$B$43:$D$43,1,MATCH($B$2,Scenari!$B$3:$D$3,0))/INDEX(Scenari!$B$15:$D$15,1,MATCH($B$2,Scenari!$B$3:$D$3,0)),"") -> 159.0 | F14: =IF($A14<=INDEX(Scenari!$B$15:$D$15,1,MATCH($B$2,Scenari!$B$3:$D$3,0)),INDEX(Scenari!$B$19:$D$19,1,MATCH($B$2,Scenari!$B$3:$D$3,0))/INDEX(Scenari!$B$15:$D$15,1,MATCH($B$2,Scenari!$B$3:$D$3,0)),"") -> 20.4 | G14: =IF($A14<=INDEX(Scenari!$B$15:$D$15,1,MATCH($B$2,Scenari!$B$3:$D$3,0)),INDEX(Scenari!$B$20:$D$20,1,MATCH($B$2,Scenari!$B$3:$D$3,0))/INDEX(Scenari!$B$15:$D$15,1,MATCH($B$2,Scenari!$B$3:$D$3,0)),"") -> 7.1 | H14: =IF($A14<=INDEX(Scenari!$B$15:$D$15,1,MATCH($B$2,Scenari!$B$3:$D$3,0)),INDEX(Scenari!$B$47:$D$47,1,MATCH($B$2,Scenari!$B$3:$D$3,0)),"") -> 6646.768707 | I14: =IF(B14="","",IF(INDEX(Scenari!$B$19:$D$19,1,MATCH($B$2,Scenari!$B$3:$D$3,0))/INDEX(Scenari!$B$15:$D$15,1,MATCH($B$2,Scenari!$B$3:$D$3,0))>INDEX(Scenari!$B$39:$D$39,1,MATCH($B$2,Scenari!$B$3:$D$3,0)),"Rafforzare appuntamenti",IF(INDEX(Scenari!$B$20:$D$20,1,MATCH($B$2,Scenari!$B$3:$D$3,0))/INDEX(Scenari!$B$15:$D$15,1,MATCH($B$2,Scenari!$B$3:$D$3,0))>INDEX(Scenari!$B$40:$D$40,1,MATCH($B$2,Scenari!$B$3:$D$3,0)),"Rafforzare proposte",IF(INDEX(Scenari!$B$47:$D$47,1,MATCH($B$2,Scenari!$B$3:$D$3,0))>INDEX(Scenari!$B$16:$D$16,1,MATCH($B$2,Scenari!$B$3:$D$3,0)),"Rafforzare budget / CPL","In linea")))) -> Rafforzare appuntamenti
A15: 9 | B15: =IF($A15<=INDEX(Scenari!$B$15:$D$15,1,MATCH($B$2,Scenari!$B$3:$D$3,0)),INDEX(Scenari!$B$13:$D$13,1,MATCH($B$2,Scenari!$B$3:$D$3,0))/INDEX(Scenari!$B$15:$D$15,1,MATCH($B$2,Scenari!$B$3:$D$3,0)),"") -> 2.0 | C15: =IF(B15="","",SUM($B$7:B15)) -> 18.0 | D15: =IF($A15<=INDEX(Scenari!$B$15:$D$15,1,MATCH($B$2,Scenari!$B$3:$D$3,0)),INDEX(Scenari!$B$42:$D$42,1,MATCH($B$2,Scenari!$B$3:$D$3,0))/INDEX(Scenari!$B$15:$D$15,1,MATCH($B$2,Scenari!$B$3:$D$3,0)),"") -> 187.1 | E15: =IF($A15<=INDEX(Scenari!$B$15:$D$15,1,MATCH($B$2,Scenari!$B$3:$D$3,0)),INDEX(Scenari!$B$43:$D$43,1,MATCH($B$2,Scenari!$B$3:$D$3,0))/INDEX(Scenari!$B$15:$D$15,1,MATCH($B$2,Scenari!$B$3:$D$3,0)),"") -> 159.0 | F15: =IF($A15<=INDEX(Scenari!$B$15:$D$15,1,MATCH($B$2,Scenari!$B$3:$D$3,0)),INDEX(Scenari!$B$19:$D$19,1,MATCH($B$2,Scenari!$B$3:$D$3,0))/INDEX(Scenari!$B$15:$D$15,1,MATCH($B$2,Scenari!$B$3:$D$3,0)),"") -> 20.4 | G15: =IF($A15<=INDEX(Scenari!$B$15:$D$15,1,MATCH($B$2,Scenari!$B$3:$D$3,0)),INDEX(Scenari!$B$20:$D$20,1,MATCH($B$2,Scenari!$B$3:$D$3,0))/INDEX(Scenari!$B$15:$D$15,1,MATCH($B$2,Scenari!$B$3:$D$3,0)),"") -> 7.1 | H15: =IF($A15<=INDEX(Scenari!$B$15:$D$15,1,MATCH($B$2,Scenari!$B$3:$D$3,0)),INDEX(Scenari!$B$47:$D$47,1,MATCH($B$2,Scenari!$B$3:$D$3,0)),"") -> 6646.768707 | I15: =IF(B15="","",IF(INDEX(Scenari!$B$19:$D$19,1,MATCH($B$2,Scenari!$B$3:$D$3,0))/INDEX(Scenari!$B$15:$D$15,1,MATCH($B$2,Scenari!$B$3:$D$3,0))>INDEX(Scenari!$B$39:$D$39,1,MATCH($B$2,Scenari!$B$3:$D$3,0)),"Rafforzare appuntamenti",IF(INDEX(Scenari!$B$20:$D$20,1,MATCH($B$2,Scenari!$B$3:$D$3,0))/INDEX(Scenari!$B$15:$D$15,1,MATCH($B$2,Scenari!$B$3:$D$3,0))>INDEX(Scenari!$B$40:$D$40,1,MATCH($B$2,Scenari!$B$3:$D$3,0)),"Rafforzare proposte",IF(INDEX(Scenari!$B$47:$D$47,1,MATCH($B$2,Scenari!$B$3:$D$3,0))>INDEX(Scenari!$B$16:$D$16,1,MATCH($B$2,Scenari!$B$3:$D$3,0)),"Rafforzare budget / CPL","In linea")))) -> Rafforzare appuntamenti
A16: 10 | B16: =IF($A16<=INDEX(Scenari!$B$15:$D$15,1,MATCH($B$2,Scenari!$B$3:$D$3,0)),INDEX(Scenari!$B$13:$D$13,1,MATCH($B$2,Scenari!$B$3:$D$3,0))/INDEX(Scenari!$B$15:$D$15,1,MATCH($B$2,Scenari!$B$3:$D$3,0)),"") -> 2.0 | C16: =IF(B16="","",SUM($B$7:B16)) -> 20.0 | D16: =IF($A16<=INDEX(Scenari!$B$15:$D$15,1,MATCH($B$2,Scenari!$B$3:$D$3,0)),INDEX(Scenari!$B$42:$D$42,1,MATCH($B$2,Scenari!$B$3:$D$3,0))/INDEX(Scenari!$B$15:$D$15,1,MATCH($B$2,Scenari!$B$3:$D$3,0)),"") -> 187.1 | E16: =IF($A16<=INDEX(Scenari!$B$15:$D$15,1,MATCH($B$2,Scenari!$B$3:$D$3,0)),INDEX(Scenari!$B$43:$D$43,1,MATCH($B$2,Scenari!$B$3:$D$3,0))/INDEX(Scenari!$B$15:$D$15,1,MATCH($B$2,Scenari!$B$3:$D$3,0)),"") -> 159.0 | F16: =IF($A16<=INDEX(Scenari!$B$15:$D$15,1,MATCH($B$2,Scenari!$B$3:$D$3,0)),INDEX(Scenari!$B$19:$D$19,1,MATCH($B$2,Scenari!$B$3:$D$3,0))/INDEX(Scenari!$B$15:$D$15,1,MATCH($B$2,Scenari!$B$3:$D$3,0)),"") -> 20.4 | G16: =IF($A16<=INDEX(Scenari!$B$15:$D$15,1,MATCH($B$2,Scenari!$B$3:$D$3,0)),INDEX(Scenari!$B$20:$D$20,1,MATCH($B$2,Scenari!$B$3:$D$3,0))/INDEX(Scenari!$B$15:$D$15,1,MATCH($B$2,Scenari!$B$3:$D$3,0)),"") -> 7.1 | H16: =IF($A16<=INDEX(Scenari!$B$15:$D$15,1,MATCH($B$2,Scenari!$B$3:$D$3,0)),INDEX(Scenari!$B$47:$D$47,1,MATCH($B$2,Scenari!$B$3:$D$3,0)),"") -> 6646.768707 | I16: =IF(B16="","",IF(INDEX(Scenari!$B$19:$D$19,1,MATCH($B$2,Scenari!$B$3:$D$3,0))/INDEX(Scenari!$B$15:$D$15,1,MATCH($B$2,Scenari!$B$3:$D$3,0))>INDEX(Scenari!$B$39:$D$39,1,MATCH($B$2,Scenari!$B$3:$D$3,0)),"Rafforzare appuntamenti",IF(INDEX(Scenari!$B$20:$D$20,1,MATCH($B$2,Scenari!$B$3:$D$3,0))/INDEX(Scenari!$B$15:$D$15,1,MATCH($B$2,Scenari!$B$3:$D$3,0))>INDEX(Scenari!$B$40:$D$40,1,MATCH($B$2,Scenari!$B$3:$D$3,0)),"Rafforzare proposte",IF(INDEX(Scenari!$B$47:$D$47,1,MATCH($B$2,Scenari!$B$3:$D$3,0))>INDEX(Scenari!$B$16:$D$16,1,MATCH($B$2,Scenari!$B$3:$D$3,0)),"Rafforzare budget / CPL","In linea")))) -> Rafforzare appuntamenti
A17: 11 | B17: =IF($A17<=INDEX(Scenari!$B$15:$D$15,1,MATCH($B$2,Scenari!$B$3:$D$3,0)),INDEX(Scenari!$B$13:$D$13,1,MATCH($B$2,Scenari!$B$3:$D$3,0))/INDEX(Scenari!$B$15:$D$15,1,MATCH($B$2,Scenari!$B$3:$D$3,0)),"") -> 2.0 | C17: =IF(B17="","",SUM($B$7:B17)) -> 22.0 | D17: =IF($A17<=INDEX(Scenari!$B$15:$D$15,1,MATCH($B$2,Scenari!$B$3:$D$3,0)),INDEX(Scenari!$B$42:$D$42,1,MATCH($B$2,Scenari!$B$3:$D$3,0))/INDEX(Scenari!$B$15:$D$15,1,MATCH($B$2,Scenari!$B$3:$D$3,0)),"") -> 187.1 | E17: =IF($A17<=INDEX(Scenari!$B$15:$D$15,1,MATCH($B$2,Scenari!$B$3:$D$3,0)),INDEX(Scenari!$B$43:$D$43,1,MATCH($B$2,Scenari!$B$3:$D$3,0))/INDEX(Scenari!$B$15:$D$15,1,MATCH($B$2,Scenari!$B$3:$D$3,0)),"") -> 159.0 | F17: =IF($A17<=INDEX(Scenari!$B$15:$D$15,1,MATCH($B$2,Scenari!$B$3:$D$3,0)),INDEX(Scenari!$B$19:$D$19,1,MATCH($B$2,Scenari!$B$3:$D$3,0))/INDEX(Scenari!$B$15:$D$15,1,MATCH($B$2,Scenari!$B$3:$D$3,0)),"") -> 20.4 | G17: =IF($A17<=INDEX(Scenari!$B$15:$D$15,1,MATCH($B$2,Scenari!$B$3:$D$3,0)),INDEX(Scenari!$B$20:$D$20,1,MATCH($B$2,Scenari!$B$3:$D$3,0))/INDEX(Scenari!$B$15:$D$15,1,MATCH($B$2,Scenari!$B$3:$D$3,0)),"") -> 7.1 | H17: =IF($A17<=INDEX(Scenari!$B$15:$D$15,1,MATCH($B$2,Scenari!$B$3:$D$3,0)),INDEX(Scenari!$B$47:$D$47,1,MATCH($B$2,Scenari!$B$3:$D$3,0)),"") -> 6646.768707 | I17: =IF(B17="","",IF(INDEX(Scenari!$B$19:$D$19,1,MATCH($B$2,Scenari!$B$3:$D$3,0))/INDEX(Scenari!$B$15:$D$15,1,MATCH($B$2,Scenari!$B$3:$D$3,0))>INDEX(Scenari!$B$39:$D$39,1,MATCH($B$2,Scenari!$B$3:$D$3,0)),"Rafforzare appuntamenti",IF(INDEX(Scenari!$B$20:$D$20,1,MATCH($B$2,Scenari!$B$3:$D$3,0))/INDEX(Scenari!$B$15:$D$15,1,MATCH($B$2,Scenari!$B$3:$D$3,0))>INDEX(Scenari!$B$40:$D$40,1,MATCH($B$2,Scenari!$B$3:$D$3,0)),"Rafforzare proposte",IF(INDEX(Scenari!$B$47:$D$47,1,MATCH($B$2,Scenari!$B$3:$D$3,0))>INDEX(Scenari!$B$16:$D$16,1,MATCH($B$2,Scenari!$B$3:$D$3,0)),"Rafforzare budget / CPL","In linea")))) -> Rafforzare appuntamenti
A18: 12 | B18: =IF($A18<=INDEX(Scenari!$B$15:$D$15,1,MATCH($B$2,Scenari!$B$3:$D$3,0)),INDEX(Scenari!$B$13:$D$13,1,MATCH($B$2,Scenari!$B$3:$D$3,0))/INDEX(Scenari!$B$15:$D$15,1,MATCH($B$2,Scenari!$B$3:$D$3,0)),"") -> 2.0 | C18: =IF(B18="","",SUM($B$7:B18)) -> 24.0 | D18: =IF($A18<=INDEX(Scenari!$B$15:$D$15,1,MATCH($B$2,Scenari!$B$3:$D$3,0)),INDEX(Scenari!$B$42:$D$42,1,MATCH($B$2,Scenari!$B$3:$D$3,0))/INDEX(Scenari!$B$15:$D$15,1,MATCH($B$2,Scenari!$B$3:$D$3,0)),"") -> 187.1 | E18: =IF($A18<=INDEX(Scenari!$B$15:$D$15,1,MATCH($B$2,Scenari!$B$3:$D$3,0)),INDEX(Scenari!$B$43:$D$43,1,MATCH($B$2,Scenari!$B$3:$D$3,0))/INDEX(Scenari!$B$15:$D$15,1,MATCH($B$2,Scenari!$B$3:$D$3,0)),"") -> 159.0 | F18: =IF($A18<=INDEX(Scenari!$B$15:$D$15,1,MATCH($B$2,Scenari!$B$3:$D$3,0)),INDEX(Scenari!$B$19:$D$19,1,MATCH($B$2,Scenari!$B$3:$D$3,0))/INDEX(Scenari!$B$15:$D$15,1,MATCH($B$2,Scenari!$B$3:$D$3,0)),"") -> 20.4 | G18: =IF($A18<=INDEX(Scenari!$B$15:$D$15,1,MATCH($B$2,Scenari!$B$3:$D$3,0)),INDEX(Scenari!$B$20:$D$20,1,MATCH($B$2,Scenari!$B$3:$D$3,0))/INDEX(Scenari!$B$15:$D$15,1,MATCH($B$2,Scenari!$B$3:$D$3,0)),"") -> 7.1 | H18: =IF($A18<=INDEX(Scenari!$B$15:$D$15,1,MATCH($B$2,Scenari!$B$3:$D$3,0)),INDEX(Scenari!$B$47:$D$47,1,MATCH($B$2,Scenari!$B$3:$D$3,0)),"") -> 6646.768707 | I18: =IF(B18="","",IF(INDEX(Scenari!$B$19:$D$19,1,MATCH($B$2,Scenari!$B$3:$D$3,0))/INDEX(Scenari!$B$15:$D$15,1,MATCH($B$2,Scenari!$B$3:$D$3,0))>INDEX(Scenari!$B$39:$D$39,1,MATCH($B$2,Scenari!$B$3:$D$3,0)),"Rafforzare appuntamenti",IF(INDEX(Scenari!$B$20:$D$20,1,MATCH($B$2,Scenari!$B$3:$D$3,0))/INDEX(Scenari!$B$15:$D$15,1,MATCH($B$2,Scenari!$B$3:$D$3,0))>INDEX(Scenari!$B$40:$D$40,1,MATCH($B$2,Scenari!$B$3:$D$3,0)),"Rafforzare proposte",IF(INDEX(Scenari!$B$47:$D$47,1,MATCH($B$2,Scenari!$B$3:$D$3,0))>INDEX(Scenari!$B$16:$D$16,1,MATCH($B$2,Scenari!$B$3:$D$3,0)),"Rafforzare budget / CPL","In linea")))) -> Rafforzare appuntamenti
A19: 13 | B19: =IF($A19<=INDEX(Scenari!$B$15:$D$15,1,MATCH($B$2,Scenari!$B$3:$D$3,0)),INDEX(Scenari!$B$13:$D$13,1,MATCH($B$2,Scenari!$B$3:$D$3,0))/INDEX(Scenari!$B$15:$D$15,1,MATCH($B$2,Scenari!$B$3:$D$3,0)),"") ->  | C19: =IF(B19="","",SUM($B$7:B19)) ->  | D19: =IF($A19<=INDEX(Scenari!$B$15:$D$15,1,MATCH($B$2,Scenari!$B$3:$D$3,0)),INDEX(Scenari!$B$42:$D$42,1,MATCH($B$2,Scenari!$B$3:$D$3,0))/INDEX(Scenari!$B$15:$D$15,1,MATCH($B$2,Scenari!$B$3:$D$3,0)),"") ->  | E19: =IF($A19<=INDEX(Scenari!$B$15:$D$15,1,MATCH($B$2,Scenari!$B$3:$D$3,0)),INDEX(Scenari!$B$43:$D$43,1,MATCH($B$2,Scenari!$B$3:$D$3,0))/INDEX(Scenari!$B$15:$D$15,1,MATCH($B$2,Scenari!$B$3:$D$3,0)),"") ->  | F19: =IF($A19<=INDEX(Scenari!$B$15:$D$15,1,MATCH($B$2,Scenari!$B$3:$D$3,0)),INDEX(Scenari!$B$19:$D$19,1,MATCH($B$2,Scenari!$B$3:$D$3,0))/INDEX(Scenari!$B$15:$D$15,1,MATCH($B$2,Scenari!$B$3:$D$3,0)),"") ->  | G19: =IF($A19<=INDEX(Scenari!$B$15:$D$15,1,MATCH($B$2,Scenari!$B$3:$D$3,0)),INDEX(Scenari!$B$20:$D$20,1,MATCH($B$2,Scenari!$B$3:$D$3,0))/INDEX(Scenari!$B$15:$D$15,1,MATCH($B$2,Scenari!$B$3:$D$3,0)),"") ->  | H19: =IF($A19<=INDEX(Scenari!$B$15:$D$15,1,MATCH($B$2,Scenari!$B$3:$D$3,0)),INDEX(Scenari!$B$47:$D$47,1,MATCH($B$2,Scenari!$B$3:$D$3,0)),"") ->  | I19: =IF(B19="","",IF(INDEX(Scenari!$B$19:$D$19,1,MATCH($B$2,Scenari!$B$3:$D$3,0))/INDEX(Scenari!$B$15:$D$15,1,MATCH($B$2,Scenari!$B$3:$D$3,0))>INDEX(Scenari!$B$39:$D$39,1,MATCH($B$2,Scenari!$B$3:$D$3,0)),"Rafforzare appuntamenti",IF(INDEX(Scenari!$B$20:$D$20,1,MATCH($B$2,Scenari!$B$3:$D$3,0))/INDEX(Scenari!$B$15:$D$15,1,MATCH($B$2,Scenari!$B$3:$D$3,0))>INDEX(Scenari!$B$40:$D$40,1,MATCH($B$2,Scenari!$B$3:$D$3,0)),"Rafforzare proposte",IF(INDEX(Scenari!$B$47:$D$47,1,MATCH($B$2,Scenari!$B$3:$D$3,0))>INDEX(Scenari!$B$16:$D$16,1,MATCH($B$2,Scenari!$B$3:$D$3,0)),"Rafforzare budget / CPL","In linea")))) -> 
A20: 14 | B20: =IF($A20<=INDEX(Scenari!$B$15:$D$15,1,MATCH($B$2,Scenari!$B$3:$D$3,0)),INDEX(Scenari!$B$13:$D$13,1,MATCH($B$2,Scenari!$B$3:$D$3,0))/INDEX(Scenari!$B$15:$D$15,1,MATCH($B$2,Scenari!$B$3:$D$3,0)),"") ->  | C20: =IF(B20="","",SUM($B$7:B20)) ->  | D20: =IF($A20<=INDEX(Scenari!$B$15:$D$15,1,MATCH($B$2,Scenari!$B$3:$D$3,0)),INDEX(Scenari!$B$42:$D$42,1,MATCH($B$2,Scenari!$B$3:$D$3,0))/INDEX(Scenari!$B$15:$D$15,1,MATCH($B$2,Scenari!$B$3:$D$3,0)),"") ->  | E20: =IF($A20<=INDEX(Scenari!$B$15:$D$15,1,MATCH($B$2,Scenari!$B$3:$D$3,0)),INDEX(Scenari!$B$43:$D$43,1,MATCH($B$2,Scenari!$B$3:$D$3,0))/INDEX(Scenari!$B$15:$D$15,1,MATCH($B$2,Scenari!$B$3:$D$3,0)),"") ->  | F20: =IF($A20<=INDEX(Scenari!$B$15:$D$15,1,MATCH($B$2,Scenari!$B$3:$D$3,0)),INDEX(Scenari!$B$19:$D$19,1,MATCH($B$2,Scenari!$B$3:$D$3,0))/INDEX(Scenari!$B$15:$D$15,1,MATCH($B$2,Scenari!$B$3:$D$3,0)),"") ->  | G20: =IF($A20<=INDEX(Scenari!$B$15:$D$15,1,MATCH($B$2,Scenari!$B$3:$D$3,0)),INDEX(Scenari!$B$20:$D$20,1,MATCH($B$2,Scenari!$B$3:$D$3,0))/INDEX(Scenari!$B$15:$D$15,1,MATCH($B$2,Scenari!$B$3:$D$3,0)),"") ->  | H20: =IF($A20<=INDEX(Scenari!$B$15:$D$15,1,MATCH($B$2,Scenari!$B$3:$D$3,0)),INDEX(Scenari!$B$47:$D$47,1,MATCH($B$2,Scenari!$B$3:$D$3,0)),"") ->  | I20: =IF(B20="","",IF(INDEX(Scenari!$B$19:$D$19,1,MATCH($B$2,Scenari!$B$3:$D$3,0))/INDEX(Scenari!$B$15:$D$15,1,MATCH($B$2,Scenari!$B$3:$D$3,0))>INDEX(Scenari!$B$39:$D$39,1,MATCH($B$2,Scenari!$B$3:$D$3,0)),"Rafforzare appuntamenti",IF(INDEX(Scenari!$B$20:$D$20,1,MATCH($B$2,Scenari!$B$3:$D$3,0))/INDEX(Scenari!$B$15:$D$15,1,MATCH($B$2,Scenari!$B$3:$D$3,0))>INDEX(Scenari!$B$40:$D$40,1,MATCH($B$2,Scenari!$B$3:$D$3,0)),"Rafforzare proposte",IF(INDEX(Scenari!$B$47:$D$47,1,MATCH($B$2,Scenari!$B$3:$D$3,0))>INDEX(Scenari!$B$16:$D$16,1,MATCH($B$2,Scenari!$B$3:$D$3,0)),"Rafforzare budget / CPL","In linea")))) -> 
A21: 15 | B21: =IF($A21<=INDEX(Scenari!$B$15:$D$15,1,MATCH($B$2,Scenari!$B$3:$D$3,0)),INDEX(Scenari!$B$13:$D$13,1,MATCH($B$2,Scenari!$B$3:$D$3,0))/INDEX(Scenari!$B$15:$D$15,1,MATCH($B$2,Scenari!$B$3:$D$3,0)),"") ->  | C21: =IF(B21="","",SUM($B$7:B21)) ->  | D21: =IF($A21<=INDEX(Scenari!$B$15:$D$15,1,MATCH($B$2,Scenari!$B$3:$D$3,0)),INDEX(Scenari!$B$42:$D$42,1,MATCH($B$2,Scenari!$B$3:$D$3,0))/INDEX(Scenari!$B$15:$D$15,1,MATCH($B$2,Scenari!$B$3:$D$3,0)),"") ->  | E21: =IF($A21<=INDEX(Scenari!$B$15:$D$15,1,MATCH($B$2,Scenari!$B$3:$D$3,0)),INDEX(Scenari!$B$43:$D$43,1,MATCH($B$2,Scenari!$B$3:$D$3,0))/INDEX(Scenari!$B$15:$D$15,1,MATCH($B$2,Scenari!$B$3:$D$3,0)),"") ->  | F21: =IF($A21<=INDEX(Scenari!$B$15:$D$15,1,MATCH($B$2,Scenari!$B$3:$D$3,0)),INDEX(Scenari!$B$19:$D$19,1,MATCH($B$2,Scenari!$B$3:$D$3,0))/INDEX(Scenari!$B$15:$D$15,1,MATCH($B$2,Scenari!$B$3:$D$3,0)),"") ->  | G21: =IF($A21<=INDEX(Scenari!$B$15:$D$15,1,MATCH($B$2,Scenari!$B$3:$D$3,0)),INDEX(Scenari!$B$20:$D$20,1,MATCH($B$2,Scenari!$B$3:$D$3,0))/INDEX(Scenari!$B$15:$D$15,1,MATCH($B$2,Scenari!$B$3:$D$3,0)),"") ->  | H21: =IF($A21<=INDEX(Scenari!$B$15:$D$15,1,MATCH($B$2,Scenari!$B$3:$D$3,0)),INDEX(Scenari!$B$47:$D$47,1,MATCH($B$2,Scenari!$B$3:$D$3,0)),"") ->  | I21: =IF(B21="","",IF(INDEX(Scenari!$B$19:$D$19,1,MATCH($B$2,Scenari!$B$3:$D$3,0))/INDEX(Scenari!$B$15:$D$15,1,MATCH($B$2,Scenari!$B$3:$D$3,0))>INDEX(Scenari!$B$39:$D$39,1,MATCH($B$2,Scenari!$B$3:$D$3,0)),"Rafforzare appuntamenti",IF(INDEX(Scenari!$B$20:$D$20,1,MATCH($B$2,Scenari!$B$3:$D$3,0))/INDEX(Scenari!$B$15:$D$15,1,MATCH($B$2,Scenari!$B$3:$D$3,0))>INDEX(Scenari!$B$40:$D$40,1,MATCH($B$2,Scenari!$B$3:$D$3,0)),"Rafforzare proposte",IF(INDEX(Scenari!$B$47:$D$47,1,MATCH($B$2,Scenari!$B$3:$D$3,0))>INDEX(Scenari!$B$16:$D$16,1,MATCH($B$2,Scenari!$B$3:$D$3,0)),"Rafforzare budget / CPL","In linea")))) -> 
A22: 16 | B22: =IF($A22<=INDEX(Scenari!$B$15:$D$15,1,MATCH($B$2,Scenari!$B$3:$D$3,0)),INDEX(Scenari!$B$13:$D$13,1,MATCH($B$2,Scenari!$B$3:$D$3,0))/INDEX(Scenari!$B$15:$D$15,1,MATCH($B$2,Scenari!$B$3:$D$3,0)),"") ->  | C22: =IF(B22="","",SUM($B$7:B22)) ->  | D22: =IF($A22<=INDEX(Scenari!$B$15:$D$15,1,MATCH($B$2,Scenari!$B$3:$D$3,0)),INDEX(Scenari!$B$42:$D$42,1,MATCH($B$2,Scenari!$B$3:$D$3,0))/INDEX(Scenari!$B$15:$D$15,1,MATCH($B$2,Scenari!$B$3:$D$3,0)),"") ->  | E22: =IF($A22<=INDEX(Scenari!$B$15:$D$15,1,MATCH($B$2,Scenari!$B$3:$D$3,0)),INDEX(Scenari!$B$43:$D$43,1,MATCH($B$2,Scenari!$B$3:$D$3,0))/INDEX(Scenari!$B$15:$D$15,1,MATCH($B$2,Scenari!$B$3:$D$3,0)),"") ->  | F22: =IF($A22<=INDEX(Scenari!$B$15:$D$15,1,MATCH($B$2,Scenari!$B$3:$D$3,0)),INDEX(Scenari!$B$19:$D$19,1,MATCH($B$2,Scenari!$B$3:$D$3,0))/INDEX(Scenari!$B$15:$D$15,1,MATCH($B$2,Scenari!$B$3:$D$3,0)),"") ->  | G22: =IF($A22<=INDEX(Scenari!$B$15:$D$15,1,MATCH($B$2,Scenari!$B$3:$D$3,0)),INDEX(Scenari!$B$20:$D$20,1,MATCH($B$2,Scenari!$B$3:$D$3,0))/INDEX(Scenari!$B$15:$D$15,1,MATCH($B$2,Scenari!$B$3:$D$3,0)),"") ->  | H22: =IF($A22<=INDEX(Scenari!$B$15:$D$15,1,MATCH($B$2,Scenari!$B$3:$D$3,0)),INDEX(Scenari!$B$47:$D$47,1,MATCH($B$2,Scenari!$B$3:$D$3,0)),"") ->  | I22: =IF(B22="","",IF(INDEX(Scenari!$B$19:$D$19,1,MATCH($B$2,Scenari!$B$3:$D$3,0))/INDEX(Scenari!$B$15:$D$15,1,MATCH($B$2,Scenari!$B$3:$D$3,0))>INDEX(Scenari!$B$39:$D$39,1,MATCH($B$2,Scenari!$B$3:$D$3,0)),"Rafforzare appuntamenti",IF(INDEX(Scenari!$B$20:$D$20,1,MATCH($B$2,Scenari!$B$3:$D$3,0))/INDEX(Scenari!$B$15:$D$15,1,MATCH($B$2,Scenari!$B$3:$D$3,0))>INDEX(Scenari!$B$40:$D$40,1,MATCH($B$2,Scenari!$B$3:$D$3,0)),"Rafforzare proposte",IF(INDEX(Scenari!$B$47:$D$47,1,MATCH($B$2,Scenari!$B$3:$D$3,0))>INDEX(Scenari!$B$16:$D$16,1,MATCH($B$2,Scenari!$B$3:$D$3,0)),"Rafforzare budget / CPL","In linea")))) -> 
A23: 17 | B23: =IF($A23<=INDEX(Scenari!$B$15:$D$15,1,MATCH($B$2,Scenari!$B$3:$D$3,0)),INDEX(Scenari!$B$13:$D$13,1,MATCH($B$2,Scenari!$B$3:$D$3,0))/INDEX(Scenari!$B$15:$D$15,1,MATCH($B$2,Scenari!$B$3:$D$3,0)),"") ->  | C23: =IF(B23="","",SUM($B$7:B23)) ->  | D23: =IF($A23<=INDEX(Scenari!$B$15:$D$15,1,MATCH($B$2,Scenari!$B$3:$D$3,0)),INDEX(Scenari!$B$42:$D$42,1,MATCH($B$2,Scenari!$B$3:$D$3,0))/INDEX(Scenari!$B$15:$D$15,1,MATCH($B$2,Scenari!$B$3:$D$3,0)),"") ->  | E23: =IF($A23<=INDEX(Scenari!$B$15:$D$15,1,MATCH($B$2,Scenari!$B$3:$D$3,0)),INDEX(Scenari!$B$43:$D$43,1,MATCH($B$2,Scenari!$B$3:$D$3,0))/INDEX(Scenari!$B$15:$D$15,1,MATCH($B$2,Scenari!$B$3:$D$3,0)),"") ->  | F23: =IF($A23<=INDEX(Scenari!$B$15:$D$15,1,MATCH($B$2,Scenari!$B$3:$D$3,0)),INDEX(Scenari!$B$19:$D$19,1,MATCH($B$2,Scenari!$B$3:$D$3,0))/INDEX(Scenari!$B$15:$D$15,1,MATCH($B$2,Scenari!$B$3:$D$3,0)),"") ->  | G23: =IF($A23<=INDEX(Scenari!$B$15:$D$15,1,MATCH($B$2,Scenari!$B$3:$D$3,0)),INDEX(Scenari!$B$20:$D$20,1,MATCH($B$2,Scenari!$B$3:$D$3,0))/INDEX(Scenari!$B$15:$D$15,1,MATCH($B$2,Scenari!$B$3:$D$3,0)),"") ->  | H23: =IF($A23<=INDEX(Scenari!$B$15:$D$15,1,MATCH($B$2,Scenari!$B$3:$D$3,0)),INDEX(Scenari!$B$47:$D$47,1,MATCH($B$2,Scenari!$B$3:$D$3,0)),"") ->  | I23: =IF(B23="","",IF(INDEX(Scenari!$B$19:$D$19,1,MATCH($B$2,Scenari!$B$3:$D$3,0))/INDEX(Scenari!$B$15:$D$15,1,MATCH($B$2,Scenari!$B$3:$D$3,0))>INDEX(Scenari!$B$39:$D$39,1,MATCH($B$2,Scenari!$B$3:$D$3,0)),"Rafforzare appuntamenti",IF(INDEX(Scenari!$B$20:$D$20,1,MATCH($B$2,Scenari!$B$3:$D$3,0))/INDEX(Scenari!$B$15:$D$15,1,MATCH($B$2,Scenari!$B$3:$D$3,0))>INDEX(Scenari!$B$40:$D$40,1,MATCH($B$2,Scenari!$B$3:$D$3,0)),"Rafforzare proposte",IF(INDEX(Scenari!$B$47:$D$47,1,MATCH($B$2,Scenari!$B$3:$D$3,0))>INDEX(Scenari!$B$16:$D$16,1,MATCH($B$2,Scenari!$B$3:$D$3,0)),"Rafforzare budget / CPL","In linea")))) -> 
A24: 18 | B24: =IF($A24<=INDEX(Scenari!$B$15:$D$15,1,MATCH($B$2,Scenari!$B$3:$D$3,0)),INDEX(Scenari!$B$13:$D$13,1,MATCH($B$2,Scenari!$B$3:$D$3,0))/INDEX(Scenari!$B$15:$D$15,1,MATCH($B$2,Scenari!$B$3:$D$3,0)),"") ->  | C24: =IF(B24="","",SUM($B$7:B24)) ->  | D24: =IF($A24<=INDEX(Scenari!$B$15:$D$15,1,MATCH($B$2,Scenari!$B$3:$D$3,0)),INDEX(Scenari!$B$42:$D$42,1,MATCH($B$2,Scenari!$B$3:$D$3,0))/INDEX(Scenari!$B$15:$D$15,1,MATCH($B$2,Scenari!$B$3:$D$3,0)),"") ->  | E24: =IF($A24<=INDEX(Scenari!$B$15:$D$15,1,MATCH($B$2,Scenari!$B$3:$D$3,0)),INDEX(Scenari!$B$43:$D$43,1,MATCH($B$2,Scenari!$B$3:$D$3,0))/INDEX(Scenari!$B$15:$D$15,1,MATCH($B$2,Scenari!$B$3:$D$3,0)),"") ->  | F24: =IF($A24<=INDEX(Scenari!$B$15:$D$15,1,MATCH($B$2,Scenari!$B$3:$D$3,0)),INDEX(Scenari!$B$19:$D$19,1,MATCH($B$2,Scenari!$B$3:$D$3,0))/INDEX(Scenari!$B$15:$D$15,1,MATCH($B$2,Scenari!$B$3:$D$3,0)),"") ->  | G24: =IF($A24<=INDEX(Scenari!$B$15:$D$15,1,MATCH($B$2,Scenari!$B$3:$D$3,0)),INDEX(Scenari!$B$20:$D$20,1,MATCH($B$2,Scenari!$B$3:$D$3,0))/INDEX(Scenari!$B$15:$D$15,1,MATCH($B$2,Scenari!$B$3:$D$3,0)),"") ->  | H24: =IF($A24<=INDEX(Scenari!$B$15:$D$15,1,MATCH($B$2,Scenari!$B$3:$D$3,0)),INDEX(Scenari!$B$47:$D$47,1,MATCH($B$2,Scenari!$B$3:$D$3,0)),"") ->  | I24: =IF(B24="","",IF(INDEX(Scenari!$B$19:$D$19,1,MATCH($B$2,Scenari!$B$3:$D$3,0))/INDEX(Scenari!$B$15:$D$15,1,MATCH($B$2,Scenari!$B$3:$D$3,0))>INDEX(Scenari!$B$39:$D$39,1,MATCH($B$2,Scenari!$B$3:$D$3,0)),"Rafforzare appuntamenti",IF(INDEX(Scenari!$B$20:$D$20,1,MATCH($B$2,Scenari!$B$3:$D$3,0))/INDEX(Scenari!$B$15:$D$15,1,MATCH($B$2,Scenari!$B$3:$D$3,0))>INDEX(Scenari!$B$40:$D$40,1,MATCH($B$2,Scenari!$B$3:$D$3,0)),"Rafforzare proposte",IF(INDEX(Scenari!$B$47:$D$47,1,MATCH($B$2,Scenari!$B$3:$D$3,0))>INDEX(Scenari!$B$16:$D$16,1,MATCH($B$2,Scenari!$B$3:$D$3,0)),"Rafforzare budget / CPL","In linea")))) -> 
A25: 19 | B25: =IF($A25<=INDEX(Scenari!$B$15:$D$15,1,MATCH($B$2,Scenari!$B$3:$D$3,0)),INDEX(Scenari!$B$13:$D$13,1,MATCH($B$2,Scenari!$B$3:$D$3,0))/INDEX(Scenari!$B$15:$D$15,1,MATCH($B$2,Scenari!$B$3:$D$3,0)),"") ->  | C25: =IF(B25="","",SUM($B$7:B25)) ->  | D25: =IF($A25<=INDEX(Scenari!$B$15:$D$15,1,MATCH($B$2,Scenari!$B$3:$D$3,0)),INDEX(Scenari!$B$42:$D$42,1,MATCH($B$2,Scenari!$B$3:$D$3,0))/INDEX(Scenari!$B$15:$D$15,1,MATCH($B$2,Scenari!$B$3:$D$3,0)),"") ->  | E25: =IF($A25<=INDEX(Scenari!$B$15:$D$15,1,MATCH($B$2,Scenari!$B$3:$D$3,0)),INDEX(Scenari!$B$43:$D$43,1,MATCH($B$2,Scenari!$B$3:$D$3,0))/INDEX(Scenari!$B$15:$D$15,1,MATCH($B$2,Scenari!$B$3:$D$3,0)),"") ->  | F25: =IF($A25<=INDEX(Scenari!$B$15:$D$15,1,MATCH($B$2,Scenari!$B$3:$D$3,0)),INDEX(Scenari!$B$19:$D$19,1,MATCH($B$2,Scenari!$B$3:$D$3,0))/INDEX(Scenari!$B$15:$D$15,1,MATCH($B$2,Scenari!$B$3:$D$3,0)),"") ->  | G25: =IF($A25<=INDEX(Scenari!$B$15:$D$15,1,MATCH($B$2,Scenari!$B$3:$D$3,0)),INDEX(Scenari!$B$20:$D$20,1,MATCH($B$2,Scenari!$B$3:$D$3,0))/INDEX(Scenari!$B$15:$D$15,1,MATCH($B$2,Scenari!$B$3:$D$3,0)),"") ->  | H25: =IF($A25<=INDEX(Scenari!$B$15:$D$15,1,MATCH($B$2,Scenari!$B$3:$D$3,0)),INDEX(Scenari!$B$47:$D$47,1,MATCH($B$2,Scenari!$B$3:$D$3,0)),"") ->  | I25: =IF(B25="","",IF(INDEX(Scenari!$B$19:$D$19,1,MATCH($B$2,Scenari!$B$3:$D$3,0))/INDEX(Scenari!$B$15:$D$15,1,MATCH($B$2,Scenari!$B$3:$D$3,0))>INDEX(Scenari!$B$39:$D$39,1,MATCH($B$2,Scenari!$B$3:$D$3,0)),"Rafforzare appuntamenti",IF(INDEX(Scenari!$B$20:$D$20,1,MATCH($B$2,Scenari!$B$3:$D$3,0))/INDEX(Scenari!$B$15:$D$15,1,MATCH($B$2,Scenari!$B$3:$D$3,0))>INDEX(Scenari!$B$40:$D$40,1,MATCH($B$2,Scenari!$B$3:$D$3,0)),"Rafforzare proposte",IF(INDEX(Scenari!$B$47:$D$47,1,MATCH($B$2,Scenari!$B$3:$D$3,0))>INDEX(Scenari!$B$16:$D$16,1,MATCH($B$2,Scenari!$B$3:$D$3,0)),"Rafforzare budget / CPL","In linea")))) -> 
A26: 20 | B26: =IF($A26<=INDEX(Scenari!$B$15:$D$15,1,MATCH($B$2,Scenari!$B$3:$D$3,0)),INDEX(Scenari!$B$13:$D$13,1,MATCH($B$2,Scenari!$B$3:$D$3,0))/INDEX(Scenari!$B$15:$D$15,1,MATCH($B$2,Scenari!$B$3:$D$3,0)),"") ->  | C26: =IF(B26="","",SUM($B$7:B26)) ->  | D26: =IF($A26<=INDEX(Scenari!$B$15:$D$15,1,MATCH($B$2,Scenari!$B$3:$D$3,0)),INDEX(Scenari!$B$42:$D$42,1,MATCH($B$2,Scenari!$B$3:$D$3,0))/INDEX(Scenari!$B$15:$D$15,1,MATCH($B$2,Scenari!$B$3:$D$3,0)),"") ->  | E26: =IF($A26<=INDEX(Scenari!$B$15:$D$15,1,MATCH($B$2,Scenari!$B$3:$D$3,0)),INDEX(Scenari!$B$43:$D$43,1,MATCH($B$2,Scenari!$B$3:$D$3,0))/INDEX(Scenari!$B$15:$D$15,1,MATCH($B$2,Scenari!$B$3:$D$3,0)),"") ->  | F26: =IF($A26<=INDEX(Scenari!$B$15:$D$15,1,MATCH($B$2,Scenari!$B$3:$D$3,0)),INDEX(Scenari!$B$19:$D$19,1,MATCH($B$2,Scenari!$B$3:$D$3,0))/INDEX(Scenari!$B$15:$D$15,1,MATCH($B$2,Scenari!$B$3:$D$3,0)),"") ->  | G26: =IF($A26<=INDEX(Scenari!$B$15:$D$15,1,MATCH($B$2,Scenari!$B$3:$D$3,0)),INDEX(Scenari!$B$20:$D$20,1,MATCH($B$2,Scenari!$B$3:$D$3,0))/INDEX(Scenari!$B$15:$D$15,1,MATCH($B$2,Scenari!$B$3:$D$3,0)),"") ->  | H26: =IF($A26<=INDEX(Scenari!$B$15:$D$15,1,MATCH($B$2,Scenari!$B$3:$D$3,0)),INDEX(Scenari!$B$47:$D$47,1,MATCH($B$2,Scenari!$B$3:$D$3,0)),"") ->  | I26: =IF(B26="","",IF(INDEX(Scenari!$B$19:$D$19,1,MATCH($B$2,Scenari!$B$3:$D$3,0))/INDEX(Scenari!$B$15:$D$15,1,MATCH($B$2,Scenari!$B$3:$D$3,0))>INDEX(Scenari!$B$39:$D$39,1,MATCH($B$2,Scenari!$B$3:$D$3,0)),"Rafforzare appuntamenti",IF(INDEX(Scenari!$B$20:$D$20,1,MATCH($B$2,Scenari!$B$3:$D$3,0))/INDEX(Scenari!$B$15:$D$15,1,MATCH($B$2,Scenari!$B$3:$D$3,0))>INDEX(Scenari!$B$40:$D$40,1,MATCH($B$2,Scenari!$B$3:$D$3,0)),"Rafforzare proposte",IF(INDEX(Scenari!$B$47:$D$47,1,MATCH($B$2,Scenari!$B$3:$D$3,0))>INDEX(Scenari!$B$16:$D$16,1,MATCH($B$2,Scenari!$B$3:$D$3,0)),"Rafforzare budget / CPL","In linea")))) -> 
A27: 21 | B27: =IF($A27<=INDEX(Scenari!$B$15:$D$15,1,MATCH($B$2,Scenari!$B$3:$D$3,0)),INDEX(Scenari!$B$13:$D$13,1,MATCH($B$2,Scenari!$B$3:$D$3,0))/INDEX(Scenari!$B$15:$D$15,1,MATCH($B$2,Scenari!$B$3:$D$3,0)),"") ->  | C27: =IF(B27="","",SUM($B$7:B27)) ->  | D27: =IF($A27<=INDEX(Scenari!$B$15:$D$15,1,MATCH($B$2,Scenari!$B$3:$D$3,0)),INDEX(Scenari!$B$42:$D$42,1,MATCH($B$2,Scenari!$B$3:$D$3,0))/INDEX(Scenari!$B$15:$D$15,1,MATCH($B$2,Scenari!$B$3:$D$3,0)),"") ->  | E27: =IF($A27<=INDEX(Scenari!$B$15:$D$15,1,MATCH($B$2,Scenari!$B$3:$D$3,0)),INDEX(Scenari!$B$43:$D$43,1,MATCH($B$2,Scenari!$B$3:$D$3,0))/INDEX(Scenari!$B$15:$D$15,1,MATCH($B$2,Scenari!$B$3:$D$3,0)),"") ->  | F27: =IF($A27<=INDEX(Scenari!$B$15:$D$15,1,MATCH($B$2,Scenari!$B$3:$D$3,0)),INDEX(Scenari!$B$19:$D$19,1,MATCH($B$2,Scenari!$B$3:$D$3,0))/INDEX(Scenari!$B$15:$D$15,1,MATCH($B$2,Scenari!$B$3:$D$3,0)),"") ->  | G27: =IF($A27<=INDEX(Scenari!$B$15:$D$15,1,MATCH($B$2,Scenari!$B$3:$D$3,0)),INDEX(Scenari!$B$20:$D$20,1,MATCH($B$2,Scenari!$B$3:$D$3,0))/INDEX(Scenari!$B$15:$D$15,1,MATCH($B$2,Scenari!$B$3:$D$3,0)),"") ->  | H27: =IF($A27<=INDEX(Scenari!$B$15:$D$15,1,MATCH($B$2,Scenari!$B$3:$D$3,0)),INDEX(Scenari!$B$47:$D$47,1,MATCH($B$2,Scenari!$B$3:$D$3,0)),"") ->  | I27: =IF(B27="","",IF(INDEX(Scenari!$B$19:$D$19,1,MATCH($B$2,Scenari!$B$3:$D$3,0))/INDEX(Scenari!$B$15:$D$15,1,MATCH($B$2,Scenari!$B$3:$D$3,0))>INDEX(Scenari!$B$39:$D$39,1,MATCH($B$2,Scenari!$B$3:$D$3,0)),"Rafforzare appuntamenti",IF(INDEX(Scenari!$B$20:$D$20,1,MATCH($B$2,Scenari!$B$3:$D$3,0))/INDEX(Scenari!$B$15:$D$15,1,MATCH($B$2,Scenari!$B$3:$D$3,0))>INDEX(Scenari!$B$40:$D$40,1,MATCH($B$2,Scenari!$B$3:$D$3,0)),"Rafforzare proposte",IF(INDEX(Scenari!$B$47:$D$47,1,MATCH($B$2,Scenari!$B$3:$D$3,0))>INDEX(Scenari!$B$16:$D$16,1,MATCH($B$2,Scenari!$B$3:$D$3,0)),"Rafforzare budget / CPL","In linea")))) -> 
A28: 22 | B28: =IF($A28<=INDEX(Scenari!$B$15:$D$15,1,MATCH($B$2,Scenari!$B$3:$D$3,0)),INDEX(Scenari!$B$13:$D$13,1,MATCH($B$2,Scenari!$B$3:$D$3,0))/INDEX(Scenari!$B$15:$D$15,1,MATCH($B$2,Scenari!$B$3:$D$3,0)),"") ->  | C28: =IF(B28="","",SUM($B$7:B28)) ->  | D28: =IF($A28<=INDEX(Scenari!$B$15:$D$15,1,MATCH($B$2,Scenari!$B$3:$D$3,0)),INDEX(Scenari!$B$42:$D$42,1,MATCH($B$2,Scenari!$B$3:$D$3,0))/INDEX(Scenari!$B$15:$D$15,1,MATCH($B$2,Scenari!$B$3:$D$3,0)),"") ->  | E28: =IF($A28<=INDEX(Scenari!$B$15:$D$15,1,MATCH($B$2,Scenari!$B$3:$D$3,0)),INDEX(Scenari!$B$43:$D$43,1,MATCH($B$2,Scenari!$B$3:$D$3,0))/INDEX(Scenari!$B$15:$D$15,1,MATCH($B$2,Scenari!$B$3:$D$3,0)),"") ->  | F28: =IF($A28<=INDEX(Scenari!$B$15:$D$15,1,MATCH($B$2,Scenari!$B$3:$D$3,0)),INDEX(Scenari!$B$19:$D$19,1,MATCH($B$2,Scenari!$B$3:$D$3,0))/INDEX(Scenari!$B$15:$D$15,1,MATCH($B$2,Scenari!$B$3:$D$3,0)),"") ->  | G28: =IF($A28<=INDEX(Scenari!$B$15:$D$15,1,MATCH($B$2,Scenari!$B$3:$D$3,0)),INDEX(Scenari!$B$20:$D$20,1,MATCH($B$2,Scenari!$B$3:$D$3,0))/INDEX(Scenari!$B$15:$D$15,1,MATCH($B$2,Scenari!$B$3:$D$3,0)),"") ->  | H28: =IF($A28<=INDEX(Scenari!$B$15:$D$15,1,MATCH($B$2,Scenari!$B$3:$D$3,0)),INDEX(Scenari!$B$47:$D$47,1,MATCH($B$2,Scenari!$B$3:$D$3,0)),"") ->  | I28: =IF(B28="","",IF(INDEX(Scenari!$B$19:$D$19,1,MATCH($B$2,Scenari!$B$3:$D$3,0))/INDEX(Scenari!$B$15:$D$15,1,MATCH($B$2,Scenari!$B$3:$D$3,0))>INDEX(Scenari!$B$39:$D$39,1,MATCH($B$2,Scenari!$B$3:$D$3,0)),"Rafforzare appuntamenti",IF(INDEX(Scenari!$B$20:$D$20,1,MATCH($B$2,Scenari!$B$3:$D$3,0))/INDEX(Scenari!$B$15:$D$15,1,MATCH($B$2,Scenari!$B$3:$D$3,0))>INDEX(Scenari!$B$40:$D$40,1,MATCH($B$2,Scenari!$B$3:$D$3,0)),"Rafforzare proposte",IF(INDEX(Scenari!$B$47:$D$47,1,MATCH($B$2,Scenari!$B$3:$D$3,0))>INDEX(Scenari!$B$16:$D$16,1,MATCH($B$2,Scenari!$B$3:$D$3,0)),"Rafforzare budget / CPL","In linea")))) -> 
A29: 23 | B29: =IF($A29<=INDEX(Scenari!$B$15:$D$15,1,MATCH($B$2,Scenari!$B$3:$D$3,0)),INDEX(Scenari!$B$13:$D$13,1,MATCH($B$2,Scenari!$B$3:$D$3,0))/INDEX(Scenari!$B$15:$D$15,1,MATCH($B$2,Scenari!$B$3:$D$3,0)),"") ->  | C29: =IF(B29="","",SUM($B$7:B29)) ->  | D29: =IF($A29<=INDEX(Scenari!$B$15:$D$15,1,MATCH($B$2,Scenari!$B$3:$D$3,0)),INDEX(Scenari!$B$42:$D$42,1,MATCH($B$2,Scenari!$B$3:$D$3,0))/INDEX(Scenari!$B$15:$D$15,1,MATCH($B$2,Scenari!$B$3:$D$3,0)),"") ->  | E29: =IF($A29<=INDEX(Scenari!$B$15:$D$15,1,MATCH($B$2,Scenari!$B$3:$D$3,0)),INDEX(Scenari!$B$43:$D$43,1,MATCH($B$2,Scenari!$B$3:$D$3,0))/INDEX(Scenari!$B$15:$D$15,1,MATCH($B$2,Scenari!$B$3:$D$3,0)),"") ->  | F29: =IF($A29<=INDEX(Scenari!$B$15:$D$15,1,MATCH($B$2,Scenari!$B$3:$D$3,0)),INDEX(Scenari!$B$19:$D$19,1,MATCH($B$2,Scenari!$B$3:$D$3,0))/INDEX(Scenari!$B$15:$D$15,1,MATCH($B$2,Scenari!$B$3:$D$3,0)),"") ->  | G29: =IF($A29<=INDEX(Scenari!$B$15:$D$15,1,MATCH($B$2,Scenari!$B$3:$D$3,0)),INDEX(Scenari!$B$20:$D$20,1,MATCH($B$2,Scenari!$B$3:$D$3,0))/INDEX(Scenari!$B$15:$D$15,1,MATCH($B$2,Scenari!$B$3:$D$3,0)),"") ->  | H29: =IF($A29<=INDEX(Scenari!$B$15:$D$15,1,MATCH($B$2,Scenari!$B$3:$D$3,0)),INDEX(Scenari!$B$47:$D$47,1,MATCH($B$2,Scenari!$B$3:$D$3,0)),"") ->  | I29: =IF(B29="","",IF(INDEX(Scenari!$B$19:$D$19,1,MATCH($B$2,Scenari!$B$3:$D$3,0))/INDEX(Scenari!$B$15:$D$15,1,MATCH($B$2,Scenari!$B$3:$D$3,0))>INDEX(Scenari!$B$39:$D$39,1,MATCH($B$2,Scenari!$B$3:$D$3,0)),"Rafforzare appuntamenti",IF(INDEX(Scenari!$B$20:$D$20,1,MATCH($B$2,Scenari!$B$3:$D$3,0))/INDEX(Scenari!$B$15:$D$15,1,MATCH($B$2,Scenari!$B$3:$D$3,0))>INDEX(Scenari!$B$40:$D$40,1,MATCH($B$2,Scenari!$B$3:$D$3,0)),"Rafforzare proposte",IF(INDEX(Scenari!$B$47:$D$47,1,MATCH($B$2,Scenari!$B$3:$D$3,0))>INDEX(Scenari!$B$16:$D$16,1,MATCH($B$2,Scenari!$B$3:$D$3,0)),"Rafforzare budget / CPL","In linea")))) -> 
A30: 24 | B30: =IF($A30<=INDEX(Scenari!$B$15:$D$15,1,MATCH($B$2,Scenari!$B$3:$D$3,0)),INDEX(Scenari!$B$13:$D$13,1,MATCH($B$2,Scenari!$B$3:$D$3,0))/INDEX(Scenari!$B$15:$D$15,1,MATCH($B$2,Scenari!$B$3:$D$3,0)),"") ->  | C30: =IF(B30="","",SUM($B$7:B30)) ->  | D30: =IF($A30<=INDEX(Scenari!$B$15:$D$15,1,MATCH($B$2,Scenari!$B$3:$D$3,0)),INDEX(Scenari!$B$42:$D$42,1,MATCH($B$2,Scenari!$B$3:$D$3,0))/INDEX(Scenari!$B$15:$D$15,1,MATCH($B$2,Scenari!$B$3:$D$3,0)),"") ->  | E30: =IF($A30<=INDEX(Scenari!$B$15:$D$15,1,MATCH($B$2,Scenari!$B$3:$D$3,0)),INDEX(Scenari!$B$43:$D$43,1,MATCH($B$2,Scenari!$B$3:$D$3,0))/INDEX(Scenari!$B$15:$D$15,1,MATCH($B$2,Scenari!$B$3:$D$3,0)),"") ->  | F30: =IF($A30<=INDEX(Scenari!$B$15:$D$15,1,MATCH($B$2,Scenari!$B$3:$D$3,0)),INDEX(Scenari!$B$19:$D$19,1,MATCH($B$2,Scenari!$B$3:$D$3,0))/INDEX(Scenari!$B$15:$D$15,1,MATCH($B$2,Scenari!$B$3:$D$3,0)),"") ->  | G30: =IF($A30<=INDEX(Scenari!$B$15:$D$15,1,MATCH($B$2,Scenari!$B$3:$D$3,0)),INDEX(Scenari!$B$20:$D$20,1,MATCH($B$2,Scenari!$B$3:$D$3,0))/INDEX(Scenari!$B$15:$D$15,1,MATCH($B$2,Scenari!$B$3:$D$3,0)),"") ->  | H30: =IF($A30<=INDEX(Scenari!$B$15:$D$15,1,MATCH($B$2,Scenari!$B$3:$D$3,0)),INDEX(Scenari!$B$47:$D$47,1,MATCH($B$2,Scenari!$B$3:$D$3,0)),"") ->  | I30: =IF(B30="","",IF(INDEX(Scenari!$B$19:$D$19,1,MATCH($B$2,Scenari!$B$3:$D$3,0))/INDEX(Scenari!$B$15:$D$15,1,MATCH($B$2,Scenari!$B$3:$D$3,0))>INDEX(Scenari!$B$39:$D$39,1,MATCH($B$2,Scenari!$B$3:$D$3,0)),"Rafforzare appuntamenti",IF(INDEX(Scenari!$B$20:$D$20,1,MATCH($B$2,Scenari!$B$3:$D$3,0))/INDEX(Scenari!$B$15:$D$15,1,MATCH($B$2,Scenari!$B$3:$D$3,0))>INDEX(Scenari!$B$40:$D$40,1,MATCH($B$2,Scenari!$B$3:$D$3,0)),"Rafforzare proposte",IF(INDEX(Scenari!$B$47:$D$47,1,MATCH($B$2,Scenari!$B$3:$D$3,0))>INDEX(Scenari!$B$16:$D$16,1,MATCH($B$2,Scenari!$B$3:$D$3,0)),"Rafforzare budget / CPL","In linea")))) -> 
A32: Sintesi
A33: Budget mensile attuale | B33: =INDEX(Scenari!$B$16:$D$16,1,MATCH($B$2,Scenari!$B$3:$D$3,0)) -> 6500 | D33: Budget richiesto/mese | E33: =INDEX(Scenari!$B$47:$D$47,1,MATCH($B$2,Scenari!$B$3:$D$3,0)) -> 6646.768707 | G33: Stato | H33: =INDEX(Scenari!$B$58:$D$58,1,MATCH($B$2,Scenari!$B$3:$D$3,0)) -> Target raggiungibile ma team da potenziare
A34: Max appunt./mese | B34: =INDEX(Scenari!$B$39:$D$39,1,MATCH($B$2,Scenari!$B$3:$D$3,0)) -> 18 | D34: Appunt./mese richiesti | E34: =INDEX(Scenari!$B$44:$D$44,1,MATCH($B$2,Scenari!$B$3:$D$3,0)) -> 20.4 | G34: Priorità | H34: =INDEX(Scenari!$B$57:$D$57,1,MATCH($B$2,Scenari!$B$3:$D$3,0)) -> Rafforza gestione appuntamenti
